Workbook

Sheet Setting
A1: Pangkat Gol. Ruang | B1: Jabatan Guru | C1: Tugas Tambahan | D1: ] | E1: AKK | F1: AK PB/PK | G1: AKPKB (PD) | H1: AKPKB (PI/KI) | I1: AKP | J1: Persentase AK Guru Kelas/Mata Pelajaran
A2: - | B2: Guru | D2: Pengatur Muda / II a | E2: =SUM(F2:I2) -> 50 | F2: 42 | G2: 3 | H2: 0 | I2: 5 | X2: URAIAN SKP
A3: Pengatur Muda / II a | B3: Guru | D3: Pengatur Muda Tk. I / II b | E3: =SUM(F3:I3) -> 50 | F3: 42 | G3: 3 | H3: 0 | I3: 5 | X3: UNSUR UTAMA
A4: Pengatur Muda Tk. I / II b | B4: Guru | D4: Pengatur / II c | E4: =SUM(F4:I4) -> 50 | F4: 42 | G4: 3 | H4: 0 | I4: 5 | J4: =C4 -> 0 | K4: 50% | L4: Mengelola dan mendayagunakan pendidik dan tenaga kependidikan secara optimal | M4: Memanfaatkan teknologi secara efektif dalam kegiatan pembelajaran | N4: Menyusun program supervisi akademik dalam rangka peningkatan profesionalisme guru | O4: Melaksanakan supervisi akademik terhadap guru dengan menggunakan pendekatan dan tekhnik supervisi yang tepat | P4: Menilai dan menindak lanjuti kegiatan supervisi akademik dalam rangka peningkatan profesionalisme guru | Q4: 5 | R4: Bidang Kurikulum | T4: Melaksanakan kegiatan kolektif guru (MGMP) | U4: 0.150 | V4: Laporan | X4: Melaksanakan kegiatan kolektif guru (MGMP)
A5: Pengatur / II c | B5: Guru | D5: Pengatur Tk. I / II d | E5: =SUM(F5:I5) -> 50 | F5: 42 | G5: 3 | H5: 0 | I5: 5 | J5: 0 | K5: 50% | L5: Mengelola peserta didik dalam rangka pengembangan kapasitasnya secara optimal sesuai minat dan bakat masing-masing | M5: Mengelola layanan-layanan khusus madrasah dalam mendukung kegiatan pembelajaran dan kegiatan peserta didik di madrasah | N5: Melaksanakan bimbingan kegiatan kegiatan Kesiswaan | O5: Menegakkan disiplin dan tata tertib siswa | Q5: 4 | R5: Bidang Kesiswaan | T5: Membuat karya tulis ilmiah berupa laporan hasil penelitian dalam bentuk buku secara nasional disahkan oleh BSNP | U5: 4.000 | V5: Laporan | X5: Membuat karya tulis ilmiah berupa laporan hasil penelitian pendidikan di madrasah, diseminarkan di madrasah dan disimpan di perpustakaan madrasah
A6: Pengatur Tk. I / II d | B6: Guru | D6: Penata Muda / III a | E6: =SUM(F6:I6) -> 50 | F6: 42 | G6: 3 | H6: 0 | I6: 5 | J6: 0 | K6: 50% | L6: Membangun jejaring kerjasama dengan pihak luar | M6: Mengelola hubungan madrasah dengan pihak lain di luar madrasah dalam rangka mendapatkan dukungan ide, sumber belajar, dan pembiayaan madrasah | N6: Mempublisasikan kebijakan, program madrasah dan prestasi madrasah pada pihak di luar madrasah | Q6: 3 | R6: Bidang Hubungan Masyarakat | T6: Membuat karya tulis ilmiah berupa laporan hasil penelitian pendidikan di madrasah dalam bentuk majalah/jurnal ilmiah tingkat nasional | U6: 3.000 | V6: Laporan | X6: Membuat makalah ilmiah bidang pembelajaran, tidak diterbitkan, disimpan di perpustakaan
A7: Penata Muda / III a | B7: Guru Pertama | D7: Penata Muda Tk. I / III b | E7: =SUM(F7:I7) -> 50 | F7: 38 | G7: 3 | H7: 4 | I7: 5 | J7: 0 | K7: 50% | L7: Mengelola dan mendayagunakan sarana dan prasarana madrasah secara optimal untuk kepentingan pembelajaran | M7: Mengelola lingkungan madrasah yang menjamin keamanan, keselamatan, dan kesehatan | N7: Mengelola sistem informasi madrasah dalam mendukung penyusunan program dan pengambilan keputusan | Q7: 3 | R7: Bidang Sarana dan Prasarana | T7: Membuat karya tulis ilmiah berupa laporan hasil penelitian pendidikan di madrasah dalam bentuk majalah/jurnal ilmiah tingkat provinsi | U7: 2.000 | V7: Laporan | X7: Membuat modul/diktat pembelajaran per semester, digunakan di madrasah
A8: Penata Muda Tk. I / III b | B8: Guru Pertama | D8: Penata / III c | E8: 100 | F8: 81 | G8: 3 | H8: 6 | I8: 10 | J8: 0 | K8: 150% | T8: Membuat karya tulis ilmiah berupa laporan hasil penelitian pendidikan di madrasah dalam bentuk majalah/jurnal ilmiah tingkat kabupaten | U8: 1.000 | V8: Laporan | X8: Membuat alat pelajaran kategori sederhana
A9: Penata / III c | B9: Guru Muda | D9: Penata Tk. I / III d | E9: 100 | F9: 78 | G9: 4 | H9: 8 | I9: 10 | J9: 0 | K9: 250% | T9: Membuat karya tulis ilmiah berupa laporan hasil penelitian pendidikan di madrasah, diseminarkan di madrasah dan disimpan di perpustakaan madrasah | U9: 4.000 | V9: Laporan | X9: Membuat alat peraga pembelajaran kategori sederhana
A10: Penata Tk. I / III d | B10: Guru Muda | D10: Pembina / IV a | E10: 150 | F10: 119 | G10: 4 | H10: 12 | I10: 15 | T10: Membuat makalah ilmiah bidang pembelajaran, tidak diterbitkan, disimpan di perpustakaan | U10: 2.000 | V10: Laporan | X10: Membuat alat praktekum kategori sederhana
A11: Pembina / IV a | B11: Guru Madya | D11: Pembina Tk. I / IV b | E11: 150 | F11: 119 | G11: 4 | H11: 12 | I11: 15 | T11: Membuat artikel ilmiah dimuat di media nasional | U11: 2.000 | V11: Laporan | X11: UNSUR PENUNJANG
A12: Pembina Tk. I / IV b | B12: Guru Madya | D12: Pembina Utama Muda / IV c | E12: 150 | F12: 116 | G12: 5 | H12: 14 | I12: 15 | T12: Membuat artikel ilmiah dimuat di media tingkat provinsi (koran daerah) | U12: 1.500 | V12: Laporan | X12: Menjadi pengawas ujian penilaian dan evaluasi terhadap proses dan hasil belajar
A13: Pembina Utama Muda / IV c | B13: Guru Madya | D13: Pembina Utama Madya / IV d | E13: 200 | F13: 155 | G13: 5 | H13: 20 | I13: 20 | T13: Membuat artikel ilmiah tentang pendidikan dan pembelajaran tingkat lingkungan madrasah | U13: 1.000 | V13: Laporan | X13: Membimbing siswa dalam kegiatan ekstrakurikuler
A14: Pembina Utama Madya / IV d | B14: Guru Utama | D14: Pembina Utama / IV e | T14: Membuat publikasi buku teks yang lolos BSNP tingkat nasional | U14: 6.000 | V14: Laporan | X14: Menjadi anggota dalam organisasi profesi
A15: Pembina Utama / IV e | B15: Guru Utama | T15: Membuat publikasi buku teks yang dicetak penerbit ber-ISBN | U15: 3.000 | V15: Laporan | X15: 0
T16: Membuat publikasi buku teks yang dicetak penerbit belum ber-ISBN | U16: 1.000 | V16: Laporan
A17: Pendidikan Terakhir | T17: Membuat modul/diktat pembelajaran per semester, digunakan tingkat provinsi | U17: 1.500 | V17: Laporan
A18: S.1 | T18: Membuat modul/diktat pembelajaran per semester, digunakan tingkat kabupaten/kota | U18: 1.000 | V18: Laporan
A19: S.2 | T19: Membuat modul/diktat pembelajaran per semester, digunakan di madrasah | U19: 0.500 | V19: Laporan
A20: S.3 | T20: Membuat buku dalam bidang pendidikan dicetak oleh penerbit ber-ISBN | U20: 3.000 | V20: Buku
T21: Membuat buku dalam bidang pendidikan dicetak oleh penerbit belum ber-ISBN | U21: 1.500 | V21: Buku
T22: Membuat karya hasil terjemahan dinyatakan oleh kepala madrasah | U22: 1.000 | V22: Karya Terjemahan
A23: H. SOIF, S.Ag, M.Pd. | B23: 19680302 199203 1 002 | C23: Pembina Tk. I / IV b | D23: 2015-10-01 | E23: Kepala Madrasah | F23: Kepala Madrasah | T23: Membuat buku pedoman guru | U23: 1.500 | V23: Buku
A24: R. WARNIATI, S. Pd. | B24: 19671211 199412 2 003 | C24: Pembina Tk. I / IV b | D24: 2012-04-01 | E24: Anggota | F24: Wali Kelas | T24: Menemukan teknologi tepat guna kategori komplek | U24: 4.000 | V24: Hasil Karya
A25: Dra. Hj. SITI RESMI NUGRAHWATI | B25: 19650414 199303 2 002 | C25: Pembina / IV a | D25: 2019-04-01 | E25: Anggota | F25: Wali Kelas | T25: Menemukan teknologi tepat guna kategori sederhana | U25: 2.000 | V25: Hasil Karya
A26: Drs. H. UU SYAMSU, MM | B26: 19630926 199603 1 001 | C26: Pembina / IV a | D26: 2018-04-01 | E26: Anggota | F26: Wali Kelas | T26: Menemukan/menciptakan karya seni kategori komplek | U26: 4.000 | V26: Hasil Karya
A27: Hj. RATNA TINTA WUNGU, S.Ag., M.Pd.I. | B27: 19671025 199903 2 001 | C27: Pembina / IV a | D27: 2019-04-01 | E27: Anggota | F27: Wali Kelas | T27: Menemukan/menciptakan karya seni kategori sederhana | U27: 2.000 | V27: Hasil Karya
A28: H. SYAMSUL ARIFIN. S.Ag. | B28: 19690804 199903 1 003 | C28: Pembina / IV a | D28: 2019-04-01 | E28: Anggota | F28: Wakil Kepala Madrasah | T28: Membuat alat pelajaran kategori komplek | U28: 2.000 | V28: Alat Pelajaran
A29: DENDI MULYADI, S.Pd. | B29: 19700520 199903 1 003 | C29: Pembina / IV a | D29: 2019-04-01 | E29: Anggota | F29: Wali Kelas | T29: Membuat alat pelajaran kategori sederhana | U29: 1.000 | V29: Alat Pelajaran
A30: SUBHAN S.Ag. | B30: 19690915 200312 1 002 | C30: Pembina / IV a | D30: 2013-04-01 | E30: Anggota | F30: Guru Mata Pelajaran | T30: Membuat alat peraga pembelajaran kategori komplek | U30: 2.000 | V30: Alat Peraga
A31: IDA FARIDA, S.Ag. | B31: 19710531 200312 2 001 | C31: Pembina / IV a | D31: 2019-04-01 | E31: Anggota | F31: Wali Kelas | T31: Membuat alat peraga pembelajaran kategori sederhana | U31: 1.000 | V31: Alat Peraga
A32: NURHAYATI, S.Pd., M.Pd.I. | B32: 19690512 200501 2 005 | C32: Penata Tk. I / III d | D32: 2017-10-01 | E32: Anggota | F32: Wakil Kepala Madrasah | T32: Membuat alat praktekum kategori komplek | U32: 4.000 | V32: Alat Praktik
A33: AAN MUKSANI S.Ag. | B33: 19720603 200501 1 001 | C33: Pembina / IV a | D33: 2019-10-01 | E33: Anggota | F33: Guru Mata Pelajaran | T33: Membuat alat praktekum kategori sederhana | U33: 2.000 | V33: Alat Praktik
A34: NINA AGUSTIANA, M.Pd. | B34: 197708052003122008 | C34: Pembina / IV a | E34: Anggota | F34: Wali Kelas
A35: BASUNI, S.Ag., M.Pd.I. | B35: 197509042005011003 | C35: Pembina / IV a | E35: Anggota | F35: Wali Kelas
A36: MAMAN ROHIMAN, S.Sos. | B36: 19740612 200710 1 003 | C36: Penata / III c | D36: 2017-04-01 | E36: Sekretaris | F36: Wakil Kepala Madrasah | T36: Mengikuti kegiatan penyusunan standar/pedoman/soal dan sejenisnya tingkat nasional | U36: 1.000 | V36: SK
T37: Mengikuti kegiatan penyusunan standar/pedoman/soal dan sejenisnya tingkat provinsi | U37: 1.000 | V37: SK
T40: Membimbing siswa dalam kegiatan ekstrakurikuler | U40: 0.170 | V40: SK
T41: Menjadi pengawas ujian penilaian dan evaluasi terhadap proses dan hasil belajar | U41: 0.080 | V41: SK
T42: Menjadi pengurus dalam organisasi profesi | U42: 1.000 | V42: SK
T43: Menjadi anggota dalam organisasi profesi | U43: 0.750 | V43: SK
T56: Pembelajaran : Guru | U56: AK
T57: Penata Muda / III a | U57: 13.125
T58: Penata Muda Tk. I / III b | U58: 11.875
T59: Penata / III c | U59: 25.313
T60: Penata Tk. I / III d | U60: 24.375
T61: Pembina / IV a | U61: 37.188
T62: Pembina Tk. I / IV b | U62: 37.188
T63: Pembina Utama Muda / IV c | U63: 37.188
T66: Tugas Tambahan : Kepala Madrasah | U66: AK
T67: Penata Muda / III a | U67: 9.844
T68: Penata Muda Tk. I / III b | U68: 8.906
T69: Penata / III c | U69: 18.985
T70: Penata Tk. I / III d | U70: 18.281
T71: Pembina / IV a | U71: 27.891
T72: Pembina Tk. I / IV b | U72: 27.891
T73: Pembina Utama Muda / IV c | U73: 27.891
A76: Drs. H. MUJAYIN, M.Pd.I | B76: 19650624 199303 1 005 | C76: Pembina Tk. I / IV b | D76: Kepala Kantor | E76: Kementerian Agama Kabupaten Cirebon | G76: Drs. H. MUJAYIN, M.Pd.I | H76: 19650624 199303 1 005 | I76: Pembina Tk. I / IV b | J76: Kepala Kantor | K76: Kementerian Agama Kabupaten Cirebon
A77: H. SOIF, S.Ag, M.Pd. | B77: 19680302 199203 1 002 | C77: Pembina Tk. I / IV b | D77: Kepala Madrasah | E77: MTsN 1 Cirebon | F77: Kementerian Agama Kabupaten Cirebon | G77: Drs. H. MUJAYIN, M.Pd.I | H77: 19650624 199303 1 005 | I77: Pembina Tk. I / IV b | J77: Kepala Kantor | K77: Kementerian Agama Kabupaten Cirebon
F78: Kementerian Agama Kabupaten Cirebon | G78: Dr. H. ADIB, M.Ag. | H78: 19740515 199803 1 003 | I78: Pembina Tk. I / IV b | J78: Kepala Kantor Wilayah | K78: Kementerian Agama Provinsi Jawa Barat
F79: Kementerian Agama Provinsi Jawa Barat | G79: Dr. H. ADIB, M.Ag. | H79: 19740515 199803 1 003 | I79: Pembina Tk. I / IV b | J79: Kepala Kantor Wilayah | K79: Kementerian Agama Provinsi Jawa Barat

Sheet Menu
B2: APLIKASI PENILAIAN KINERJA GURU (PKG)
B3: GURU KELAS / GURU MATA PELAJARAN
B4: ::. VERSI MTsN 1 CIREBON .::
B6: ="Periode Penilaian : "&Guru!D44&" s/d "&Guru!D46 -> Periode Penilaian : 1 Januari 2021 s/d 31 Desember 2021
B15: Nama Penilai | C15: :
B17: N I P | C17: : | D17: =IF($D$15="","",(VLOOKUP($D$15,Setting!$A$23:$E$36,2,FALSE))) -> 
B19: Pangkat/ Gol. Ruang | C19: : | D19: =IF($D$15="","",(VLOOKUP($D$15,Setting!$A$23:$E$36,3,FALSE))) -> 
B21: TMT Pangkat/Gol. Ruang | C21: : | D21: =IF($D$15="","",(VLOOKUP($D$15,Setting!$A$23:$E$36,4,FALSE))) -> 
B23: Jabatan | C23: : | D23: =IF($D$15="","",(VLOOKUP($D$15,Setting!$A$23:$E$36,5,FALSE))) -> 
A36: Silahkan Gunakan Microsoft Office 2010 ke atas dan aktifkan Macro Excel Anda
A38: Modified : Aruel Aryadinatha (Update : 21-09-2021) | D38: Created by Lanna Jayana

Sheet Madrasah
B2: DATA MADRASAH (Harap diisi dengan lengkap dan benar)
B6: Nama Madrasah | C6: : | D6: MTsN 1 Cirebon
B8: Desa/Kelurahan | C8: : | D8: Babakangebang
B10: Kecamatan | C10: : | D10: Babakan
B12: No. Telp/Fax | C12: : | D12: 0231-8840233
B14: Unit Kerja | C14: : | D14: MTsN 1 Cirebon
B16: Nama Kepala Madrasah | C16: : | D16: H. SOIF, S.Ag., M.Pd.
B18: N I P | C18: : | D18: 19680302 199203 1 002
B20: Pangkat / Gol. Ruang | C20: : | D20: Pembina Tk. I / IV b

Sheet Guru
B2: DATA GURU YANG DINILAI (Harap diisi dengan lengkap dan benar)
B6: N a m a | C6: :
B8: N I P | C8: :
B10: Tempat, Tanggal Lahir | C10: :
B12: Pangkat/Gol. Ruang | C12: :
B14: TMT Pangkat/Gol. Ruang | C14: :
B16: Jabatan | C16: : | D16: =VLOOKUP(D12,Setting!$A$2:$B$15,2,FALSE) -> 
B18: Jenis Guru | C18: :
B20: Tugas Tambahan | C20: :
B22: No. Seri Karpeg | C22: :
B24: N U P T K | C24: :
B26: N R G | C26: :
B28: Tanggal mulai mengajar di madrasah ini | C28: :
B30: TMT Sebagai Guru | C30: :
B32: Masa Kerja | C32: :
B34: Jenis Kelamin | C34: :
B36: Pendidikan Terakhir | C36: :
B38: Program Studi/Jurusan | C38: :
B40: Mata Pelajaran Yang Diampu | C40: :
B42: Tanggal Proses PKG | C42: :
B44: Tanggal Mulai Periode PKG | C44: : | D44: 1 Januari 2021
B46: Tanggal Akhir Periode PKG | C46: : | D46: 31 Desember 2021

Sheet Cover PK Guru
C6: PENILAIAN KINERJA GURU (PKG)
C7: ="("&(UPPER(Guru!$D$18))&")" -> ()
C8: ="Periode Penilaian : "&Guru!D44&" s/d "&Guru!D46 -> Periode Penilaian : 1 Januari 2021 s/d 31 Desember 2021
D28: N a m a | G28: : | H28: =Guru!$D$6 -> 0
D29: N I P | G29: : | H29: =Guru!$D$8 -> 0
D30: N U P T K | G30: : | H30: =Guru!$D$24 -> 0
D31: Pangkat/Gol. Ruang | G31: : | H31: =Guru!$D$12 -> 0
D32: Jabatan | G32: : | H32: =Guru!$D$16 -> 
D33: Jenis Guru | G33: : | H33: =Guru!$D$18 -> 0
D34: Mengajar | G34: : | H34: =Guru!$D$40 -> 0
D35: Tempat Tugas | G35: : | H35: =Madrasah!$D$6 -> MTsN 1 Cirebon
D36: Unit Kerja | G36: : | H36: =IF((LEFT(Madrasah!$D$14,17))="Kementerian Agama","Kementerian Agama",(IF((LEFT(Madrasah!$D$14,7))="Kemenag","Kementerian Agama",Madrasah!$D$14))) -> MTsN 1 Cirebon
H37: =IF(H36="Kementerian Agama","Kantor Kabupaten Cirebon","") -> 
C43: KEMENTERIAN AGAMA REPUBLIK INDONESIA
C44: KANTOR KEMENTERIAN AGAMA KABUPATEN CIREBON
C45: Jalan Sunan Drajat No. 5 Komplek Perkantoran Sumber Cirebon – 45611
C46: Telp. (0231) 321254 Fax. (0231) 325405, 321275, 8330579
C47: e-mail : kemagcirebon@gmail.com

Sheet Penilaian PK Guru
B2: PENILAIAN KOMPETENSI 1 | N2: GESER KE BAWAH UNTUK LANJUT MENILAI
B3: Menguasai Karakteristik Peserta Didik
B4: No. | C4: Indikator | I4: Skor
I5: Tidak Ada Bukti (Tidak Terpenuhi) | J5: Terpenuhi Sebagian | K5: Seluruhnya Terpenuhi
I6: 0 | J6: 1 | K6: 2
B7: 1. | C7: Guru dapat mengidentifikasi karakteristik belajar setiap peserta didik di kelasnya | I7: =IF($M7=1,"V","") -> V | J7: =IF($M7=2,"V","") ->  | K7: =IF($M7=3,"V","") ->  | M7: 1
B8: 2. | C8: Guru memastikan bahwa semua peserta didik mendapatkan kesempatan yang sama untuk berpartisipasi aktif dalam kegiatan pembelajaran | I8: V | M8: 1
B9: 3. | C9: Guru dapat mengatur kelas untuk memberikan kesempatan belajar yang sama pada semua peserta didik dengan kelainan fisik dan kemampuan belajar yang berbeda | I9: V | M9: 1
B10: 4. | C10: Guru mencoba mengetahui penyebab penyimpangan perilaku peserta didik untuk mencegah agar perilaku tersebut tidak merugikan peserta didik lainnya | I10: V | M10: 1
B11: 5. | C11: Guru membantu mengembangkan potensi dan mengatasi kekurangan peserta didik | I11: V | M11: 1
B12: 6. | C12: Guru memperhatikan peserta didik dengan kelemahan fisik tertentu agar dapat mengikuti aktivitas pembelajaran, sehingga peserta didik tersebut tidak termarginalkan (tersisihkan, diolok- olok, minder, dsb.) | I12: V | M12: 1
B13: Total skor untuk kompetensi 1 | I13: =((COUNTIF(K7:K12,"V"))*2)+(COUNTIF(J7:J12,"V")) -> 0
B14: Skor maksimum kompetensi 1 = jumlah indikator × 2 | I14: 12
B15: Persentase = (total skor/12) × 100% | I15: =(I13/I14)*100 -> 0
B16: Nilai untuk kompetensi 1 (0% < X ≤ 25% = 1; 25% < X ≤ 50% = 2; 50% < X ≤ 75% = 3; 75% < X ≤ 100% = 4) | I16: =IF(I15>75,"4",IF(I15>50,"3",IF(I15>25,"2","1"))) -> 1
B38: PENILAIAN KOMPETENSI 2
B39: Menguasai teori belajar dan prinsip-prinsip pembelajaran yang mendidik
B40: No. | C40: Indikator | I40: Skor
I41: Tidak Ada Bukti (Tidak Terpenuhi) | J41: Terpenuhi Sebagian | K41: Seluruhnya Terpenuhi
I42: 0 | J42: 1 | K42: 2
B43: 1. | C43: Guru memberi kesempatan kepada peserta didik untuk menguasai materi pembelajaran sesuai usia dan kemampuannya belajarnya melalui pengaturan proses pembelajaran dan aktivitas yang bervariasi | I43: =IF($M43=1,"V","") -> V | J43: =IF($M43=2,"V","") ->  | K43: =IF($M43=3,"V","") ->  | M43: 1
B44: 2. | C44: Guru selalu memastikan tingkat pemahaman peserta didik terhadap materi pembelajaran tertentu dan menyesuaikan aktivitas pembelajaran berikutnya berdasarkan tingkat pemahaman tersebut | I44: V | M44: 1
B45: 3. | C45: Guru dapat menjelaskan alasan pelaksanaan kegiatan / aktivitas yang dilakukannya, baik yang sesuai maupun yang berbeda dengan rencana, terkait keberhasilan pembelajaran | I45: V | M45: 1
B46: 4. | C46: Guru menggunakan berbagai teknik untuk memotiviasi kemauan belajar peserta didik | I46: V | M46: 1
B47: 5. | C47: Guru merencanakan kegiatan pembelajaran yangsaling terkait satu sama lain, dengan memperhatikan tujuan pembelajaran maupun proses belajar peserta didik | I47: V | M47: 1
B48: 6. | C48: Guru memperhatikan respon peserta didik yang belum / kurang memahami materi pembelajaran yang diajarkan dan menggunakannya untuk memperbaiki rancangan pembelajaran berikutnya | I48: V | M48: 1
B49: Total skor untuk kompetensi 2 | I49: =((COUNTIF(K43:K48,"V"))*2)+(COUNTIF(J43:J48,"V")) -> 0
B50: Skor maksimum kompetensi 2 = jumlah indikator × 2 | I50: 12
B51: Persentase = (total skor/12) × 100% | I51: =(I49/I50)*100 -> 0
B52: Nilai untuk kompetensi 2 (0% < X ≤ 25% = 1; 25% < X ≤ 50% = 2; 50% < X ≤ 75% = 3; 75% < X ≤ 100% = 4) | I52: =IF(I51>75,"4",IF(I51>50,"3",IF(I51>25,"2","1"))) -> 1
B71: PENILAIAN KOMPETENSI 3
B72: Pengembangan Kurikulum
B73: No. | C73: Indikator | I73: Skor
I74: Tidak Ada Bukti (Tidak Terpenuhi) | J74: Terpenuhi Sebagian | K74: Seluruhnya Terpenuhi
I75: 0 | J75: 1 | K75: 2
B76: 1. | C76: Guru dapat menyusun silabus yang sesuai dengan kurikulum | I76: =IF($M76=1,"V","") -> V | J76: =IF($M76=2,"V","") ->  | K76: =IF($M76=3,"V","") ->  | M76: 1
B77: 2. | C77: Guru merancang rencana pembelajaran yang sesuai dengan silabus untuk membahas materi ajar tertentu agar peserta didik dapat mencapai kompetensi dasar yang ditetapkan | I77: V | M77: 1
B78: 3. | C78: Guru mengikuti urutan materi pembelajaran dengan memperhatikan tujuan pembelajaran | I78: V | M78: 1
B79: 4. | C79: Guru memilih materi pembelajaran yang : a) sesuai dengan tujuan pembelajaran; b) tepat dan mutakhir; c) sesuai dengan usia dan tingkat kemampuan belajar peserta didik; d) dapat dilaksanakan di kelas; e.) sesuai dengan konteks kehidupan sehari-hari peserta didik | I79: V | M79: 1
B80: Total skor untuk kompetensi 3 | I80: =((COUNTIF(K76:K79,"V"))*2)+(COUNTIF(J76:J79,"V")) -> 0
B81: Skor maksimum kompetensi 3 = jumlah indikator × 2 | I81: 8
B82: Persentase = (total skor/8) × 100% | I82: =(I80/I81)*100 -> 0
B83: Nilai untuk kompetensi 3 (0% < X ≤ 25% = 1; 25% < X ≤ 50% = 2; 50% < X ≤ 75% = 3; 75% < X ≤ 100% = 4) | I83: =IF(I82>75,"4",IF(I82>50,"3",IF(I82>25,"2","1"))) -> 1
B110: PENILAIAN KOMPETENSI 4
B111: Kegiatan pembelajaran yang mendidik
B112: No. | C112: Indikator | I112: Skor
I113: Tidak Ada Bukti (Tidak Terpenuhi) | J113: Terpenuhi Sebagian | K113: Seluruhnya Terpenuhi
I114: 0 | J114: 1 | K114: 2
B115: 1. | C115: Guru melaksanakan aktivitas pembelajaran sesuai dengan rancangan yang telah disusun secara lengkap dan pelaksanaan aktivitas tersebut mengindikasikan bahwa guru mengerti tentang tujuannya | I115: =IF($M115=1,"V","") -> V | J115: =IF($M115=2,"V","") ->  | K115: =IF($M115=3,"V","") ->  | M115: 1
B116: 2. | C116: Guru melaksanakan aktivitas pembelajaran yang bertujuan untuk membantu proses belajar peserta didik, bukan untuk menguji sehingga membuat peserta didik merasa tertekan | I116: V | M116: 1
B117: 3. | C117: Guru mengkomunikasikan informasi baru (misalnya materi tambahan) sesuai dengan usia dan tingkat kemampuan belajar peserta didik | I117: V | M117: 1
B118: 4. | C118: Guru menyikapi kesalahan yang dilakukan peserta didik sebagai tahapan proses pembelajaran, bukan semata-mata kesalahan yang harus dikoreksi. Misalnya: dengan mengetahui terlebih dahulu peserta didik lain yang setuju atau tidak setuju dengan jawaban tersebut, sebelum memberikan penjelasan tentang jawaban yang benar | I118: V | M118: 1
B119: 5. | C119: Guru melaksanakan kegiatan pembelajaran sesuai isi kurikulum dan mengkaitkannya dengan konteks kehidupan sehari-hari peserta didik | I119: V | M119: 1
B120: 6. | C120: Guru melakukan aktivitas pembelajaran secara bervariasi dengan waktu yang cukup untuk kegiatan pembelajaran yang sesuai dengan usia dan tingkat kemampuan belajar dan mempertahankan perhatian peserta didik | I120: V | M120: 1
B121: 7. | C121: Guru mengelola kelas dengan efektif tanpa mendominasi atau sibuk dengan kegiatannya sendiri agar semua waktu peserta dapat termanfaatkan secara produktif | I121: V | M121: 1
B122: 8. | C122: Guru mampu menyesuaikan aktivitas pembelajaran yang dirancang dengan kondisi kelas | I122: V | M122: 1
B123: 9. | C123: Guru memberikan banyak kesempatan kepada peserta didik untuk bertanya, mempraktekkan dan berinteraksi dengan peserta didik lain | I123: V | M123: 1
B124: 10. | C124: Guru mengatur pelaksanaan aktivitas pembelajaran secara sistematis untuk membantu proses belajar peserta didik. Sebagai contoh : guru menambah informasi baru setelah mengevaluasi pemahaman peserta didik terhadap materi sebelumnya | I124: V | M124: 1
B125: 11. | C125: Guru menggunakan alat bantu mengajar, dan / atau audio-visual (termasuk TIK) untuk meningkatkan motivasi belajar peserta didik dalam mencapai tujuan pembelajaran | I125: V | M125: 1
B126: Total skor untuk kompetensi 4 | I126: =((COUNTIF(K115:K125,"V"))*2)+(COUNTIF(J115:J125,"V")) -> 0
B127: Skor maksimum kompetensi 4 = jumlah indikator × 2 | I127: 22
B128: Persentase = (total skor/22) × 100% | I128: =(I126/I127)*100 -> 0
B129: Nilai untuk kompetensi 4 (0% < X ≤ 25% = 1; 25% < X ≤ 50% = 2; 50% < X ≤ 75% = 3; 75% < X ≤ 100% = 4) | I129: =IF(I128>75,"4",IF(I128>50,"3",IF(I128>25,"2","1"))) -> 1
B132: PENILAIAN KOMPETENSI 5
B133: Pengembangan potensi peserta didik
B134: No. | C134: Indikator | I134: Skor
I135: Tidak Ada Bukti (Tidak Terpenuhi) | J135: Terpenuhi Sebagian | K135: Seluruhnya Terpenuhi
I136: 0 | J136: 1 | K136: 2
B137: 1. | C137: Guru menganalisis hasil belajar berdasarkan segala bentuk penilaian terhadap setiap peserta didik untuk mengetahui tingkat kemajuan masing-masing | I137: =IF($M137=1,"V","") -> V | J137: =IF($M137=2,"V","") ->  | K137: =IF($M137=3,"V","") ->  | M137: 1
B138: 2. | C138: Guru merancang dan melaksanakan aktivitas pembelajaran yang mendorong peserta didik untuk belajar sesuai dengan kecakapan dan pola belajar masing-masing | I138: V | M138: 1
B139: 3. | C139: Guru merancang dan melaksanakan aktivitas pembelajaran untuk memunculkan daya kreativitas dan kemampuan berfikir kritis peserta didik | I139: V | M139: 1
B140: 4. | C140: Guru secara aktif membantu peserta didik dalam proses pembelajaran dengan memberikan perhatian kepada setiap individu | I140: V | M140: 1
B141: 5. | C141: Guru dapat mengidentifikasi dengan benar tentang bakat, minat, potensi, dan kesulitan belajar masing-masing peserta didik | I141: V | M141: 1
B142: 6. | C142: Guru memberikan kesempatan belajar kepada peserta didik sesuai dengan cara belajarnya masing-masing | I142: V | M142: 1
B143: 7. | C143: Guru memusatkan perhatian pada interaksi dengan peserta didik dan mendorongnya untuk memahami dan menggunakan informasi yang disampaikan | I143: V | M143: 1
B144: Total skor untuk kompetensi 5 | I144: =((COUNTIF(K137:K143,"V"))*2)+(COUNTIF(J137:J143,"V")) -> 0
B145: Skor maksimum kompetensi 5 = jumlah indikator × 2 | I145: 14
B146: Persentase = (total skor/14) × 100% | I146: =(I144/I145)*100 -> 0
B147: Nilai untuk kompetensi 5 (0% < X ≤ 25% = 1; 25% < X ≤ 50% = 2; 50% < X ≤ 75% = 3; 75% < X ≤ 100% = 4) | I147: =IF(I146>75,"4",IF(I146>50,"3",IF(I146>25,"2","1"))) -> 1
B166: PENILAIAN KOMPETENSI 6
B167: Komunikasi dengan peserta didik
B168: No. | C168: Indikator | I168: Skor
I169: Tidak Ada Bukti (Tidak Terpenuhi) | J169: Terpenuhi Sebagian | K169: Seluruhnya Terpenuhi
I170: 0 | J170: 1 | K170: 2
B171: 1. | C171: Guru menggunakan pertanyaan untuk mengetahui pemahaman & menjaga partisipasi peserta didik, termasuk memberikan pertanyaan terbuka yang menuntut peserta didik untuk menjawab dengan ide dan pengetahuan mereka | I171: =IF($M171=1,"V","") -> V | J171: =IF($M171=2,"V","") ->  | K171: =IF($M171=3,"V","") ->  | M171: 1
B172: 2. | C172: Guru memberikan perhatian dan mendengarkan semua pertanyaan dan tanggapan peserta didik, tanpa menginterupsi, kecuali jika diperlukan untuk membantu atau mengklarifikasi pertanyaan/tanggapan tersebut | I172: V | M172: 1
B173: 3. | C173: Guru menanggapinya pertanyaan peserta didik secara tepat, benar, dan mutakhir, sesuai tujuan pembelajaran dan isi kurikulum, tanpa mempermalukannya | I173: V | M173: 1
B174: 4. | C174: Guru menyajikan kegiatan pembelajaran yang dapat menumbuhkan kerja sama yang baik antar peserta didik | I174: V | M174: 1
B175: 5. | C175: Guru mendengarkan dan memberikan perhatian terhadap semua jawaban peserta didik baik yang benar maupun yang dianggap salah untuk mengukur tingkat pemahaman peserta didik | I175: V | M175: 1
B176: 6. | C176: Guru memberikan perhatian terhadap pertanyaan peserta didik dan meresponnya secara lengkap dan relevan untuk menghilangkan kebingungan pada peserta didik | I176: V | M176: 1
B177: Total skor untuk kompetensi 6 | I177: =((COUNTIF(K171:K176,"V"))*2)+(COUNTIF(J171:J176,"V")) -> 0
B178: Skor maksimum kompetensi 6 = jumlah indikator × 2 | I178: 12
B179: Persentase = (total skor/12) × 100% | I179: =(I177/I178)*100 -> 0
B180: Nilai untuk kompetensi 6 (0% < X ≤ 25% = 1; 25% < X ≤ 50% = 2; 50% < X ≤ 75% = 3; 75% < X ≤ 100% = 4) | I180: =IF(I179>75,"4",IF(I179>50,"3",IF(I179>25,"2","1"))) -> 1
B199: PENILAIAN KOMPETENSI 7
B200: Penilaian dan evaluasi
B201: No. | C201: Indikator | I201: Skor
I202: Tidak Ada Bukti (Tidak Terpenuhi) | J202: Terpenuhi Sebagian | K202: Seluruhnya Terpenuhi
I203: 0 | J203: 1 | K203: 2
B204: 1. | C204: Guru menyusun alat penilaian yang sesuai dengan tujuan pembelajaran untuk mencapai kompetensi tertentu seperti yang tertulis dalam RPP | I204: =IF($M204=1,"V","") -> V | J204: =IF($M204=2,"V","") ->  | K204: =IF($M204=3,"V","") ->  | M204: 1
B205: 2. | C205: Guru melaksanakan penilaian dengan berbagai teknik dan jenis penilaian, selain penilaian formal yang dilaksanakan sekolah, dan mengumumkan hasil serta implikasinya kepada peserta didik, tentang tingkat pemahaman terhadap materi pembelajaran yang telah dan akan dipelajari | I205: V | M205: 1
B206: 3. | C206: Guru menganalisis hasil penilaian untuk mengidentifikasi topik / kompetensi dasar yang sulit sehingga diketahui kekuatan dan kelemahan masing-masing peserta didik untuk keperluan remedial dan pengayaan | I206: V | M206: 1
B207: 4. | C207: Guru memanfaatkan masukan dari peserta didik dan merefleksikannya untuk meningkatkan pembelajaran selanjutnya, dan dapat membuktikannya melalui catatan, jurnal pembelajaran, rancangan pembelajaran, materi tambahan, dan sebagainya | I207: V | M207: 1
B208: 5. | C208: Guru memanfatkan hasil penilaian sebagai bahan penyusunan rancangan pembelajaran yang akan dilakukan selanjutnya | I208: V | M208: 1
B209: Total skor untuk kompetensi 7 | I209: =((COUNTIF(K204:K208,"V"))*2)+(COUNTIF(J204:J208,"V")) -> 0
B210: Skor maksimum kompetensi 7 = jumlah indikator × 2 | I210: 10
B211: Persentase = (total skor/10) × 100% | I211: =(I209/I210)*100 -> 0
B212: Nilai untuk kompetensi 7 (0% < X ≤ 25% = 1; 25% < X ≤ 50% = 2; 50% < X ≤ 75% = 3; 75% < X ≤ 100% = 4) | I212: =IF(I211>75,"4",IF(I211>50,"3",IF(I211>25,"2","1"))) -> 1
B233: PENILAIAN KOMPETENSI 8
B234: Bertindak sesuai dengan norma agama, hukum, sosial, dan kebudayaan nasional
B235: No. | C235: Indikator | I235: Skor
I236: Tidak Ada Bukti (Tidak Terpenuhi) | J236: Terpenuhi Sebagian | K236: Seluruhnya Terpenuhi
I237: 0 | J237: 1 | K237: 2
B238: 1. | C238: Guru menghargai dan mempromosikan prinsip-prinsip Pancasila sebagai dasar ideologi dan etika bagi semua warga Indonesia | I238: =IF($M238=1,"V","") -> V | J238: =IF($M238=2,"V","") ->  | K238: =IF($M238=3,"V","") ->  | M238: 1
B239: 2. | C239: Guru mengembangkan kerjasama dan membina kebersamaan dengan teman sejawat tanpa memperhatikan perbedaan yang ada (misalnya: suku, agama, dan gender) | I239: V | M239: 1
B240: 3. | C240: Guru saling menghormati dan menghargai teman sejawat sesuai dengan kondisi dan keberadaan masing-masing | I240: V | M240: 1
B241: 4. | C241: Guru memiliki rasa persatuan dan kesatuan sebagai bangsa Indonesia | I241: V | M241: 1
B242: 5. | C242: Guru mempunyai pandangan yang luas tentang keberagaman bangsa Indonesia (misalnya: budaya, suku, agama) | I242: V | M242: 1
B243: Total skor untuk kompetensi 8 | I243: =((COUNTIF(K238:K242,"V"))*2)+(COUNTIF(J238:J242,"V")) -> 0 | M243: 0
B244: Skor maksimum kompetensi 8 = jumlah indikator × 2 | I244: 10
B245: Persentase = (total skor/10) × 100% | I245: =(I243/I244)*100 -> 0
B246: Nilai untuk kompetensi 8 (0% < X ≤ 25% = 1; 25% < X ≤ 50% = 2; 50% < X ≤ 75% = 3; 75% < X ≤ 100% = 4) | I246: =IF(I245>75,"4",IF(I245>50,"3",IF(I245>25,"2","1"))) -> 1
B273: PENILAIAN KOMPETENSI 9
B274: Menunjukan pribadi yang dewasa dan teladan
B275: No. | C275: Indikator | I275: Skor
I276: Tidak Ada Bukti (Tidak Terpenuhi) | J276: Terpenuhi Sebagian | K276: Seluruhnya Terpenuhi
I277: 0 | J277: 1 | K277: 2
B278: 1. | C278: Guru bertingkah laku sopan dalam berbicara, berpenampilan, dan berbuat terhadap semua peserta didik, orang tua, dan teman sejawat | I278: =IF($M278=1,"V","") -> V | J278: =IF($M278=2,"V","") ->  | K278: =IF($M278=3,"V","") ->  | M278: 1
B279: 2. | C279: Guru mau membagi pengalamannya dengan teman sejawat, termasuk mengundang mereka untuk mengobservasi cara mengajarnya dan memberikan masukan | I279: V | M279: 1
B280: 3. | C280: Guru mampu mengelola pembelajaran yang membuktikan bahwa guru dihormati oleh peserta didik, sehingga semua peserta didik selalu memperhatikan guru dan berpartisipasi aktif dalam proses pembelajaran | I280: V | M280: 1
B281: 4. | C281: Guru bersikap dewasa dalam menerima masukan dari peserta didik dan memberikan kesempatan kepada peserta didik untuk berpartisipasi dalam proses pembelajaran | I281: V | M281: 1
B282: 5. | C282: Guru berperilaku baik untuk mencitrakan nama baik sekolah | I282: V | M282: 1
B283: Total skor untuk kompetensi 9 | I283: =((COUNTIF(K278:K282,"V"))*2)+(COUNTIF(J278:J282,"V")) -> 0
B284: Skor maksimum kompetensi 9 = jumlah indikator × 2 | I284: 10
B285: Persentase = (total skor/10) × 100% | I285: =(I283/I284)*100 -> 0
B286: Nilai untuk kompetensi 9 (0% < X ≤ 25% = 1; 25% < X ≤ 50% = 2; 50% < X ≤ 75% = 3; 75% < X ≤ 100% = 4) | I286: =IF(I285>75,"4",IF(I285>50,"3",IF(I285>25,"2","1"))) -> 1
B310: PENILAIAN KOMPETENSI 10
B311: Etos kerja, tanggung jawab yang tinggi, rasa bangga menjadi guru
B312: No. | C312: Indikator | I312: Skor
I313: Tidak Ada Bukti (Tidak Terpenuhi) | J313: Terpenuhi Sebagian | K313: Seluruhnya Terpenuhi
I314: 0 | J314: 1 | K314: 2
B315: 1. | C315: Guru mengawali dan mengakhiri pembelajaran dengan tepat waktu | I315: =IF($M315=1,"V","") -> V | J315: =IF($M315=2,"V","") ->  | K315: =IF($M315=3,"V","") ->  | M315: 1
B316: 2. | C316: Jika guru harus meninggalkan kelas, guru mengaktifkan siswa dengan melakukan hal-hal produktif terkait dengan mata pelajaran, dan meminta guru piket atau guru lain untuk mengawasi kelas | I316: V | M316: 1
B317: 3. | C317: Guru memenuhi jam mengajar dan dapat melakukan semua kegiatan lain di luar jam mengajar berdasarkan ijin dan persetujuan pengelola sekolah | I317: V | M317: 1
B318: 4. | C318: Guru meminta ijin dan memberitahu lebih awal, dengan memberikan alasan dan bukti yang sah jika tidak menghadiri kegiatan yang telah direncanakan, termasuk proses pembelajaran di kelas | I318: V | M318: 1
B319: 5. | C319: Guru menyelesaikan semua tugas administratif dan non-pembelajaran dengan tepat waktu sesuai standar yang ditetapkan | I319: V | M319: 1
B320: 6. | C320: Guru memanfaatkan waktu luang selain mengajar untuk kegiatan yang produktif terkait dengan tugasnya | I320: V | M320: 1
B321: 7. | C321: Guru memberikan kontribusi terhadap pengembangan sekolah dan mempunyai prestasi yang berdampak positif terhadap nama baik sekolah | I321: V | M321: 1
B322: 8. | C322: Guru merasa bangga dengan profesinya sebagai guru | I322: V | M322: 1
B323: Total skor untuk kompetensi 10 | I323: =((COUNTIF(K315:K322,"V"))*2)+(COUNTIF(J315:J322,"V")) -> 0
B324: Skor maksimum kompetensi 10 = jumlah indikator × 2 | I324: 16
B325: Persentase = (total skor/14) × 100% | I325: =(I323/I324)*100 -> 0
B326: Nilai untuk kompetensi 10 (0% < X ≤ 25% = 1; 25% < X ≤ 50% = 2; 50% < X ≤ 75% = 3; 75% < X ≤ 100% = 4) | I326: =IF(I325>75,"4",IF(I325>50,"3",IF(I325>25,"2","1"))) -> 1
B342: PENILAIAN KOMPETENSI 11
B343: Bersikap inklusif, bertindak obyektif, serta tidak diskriminatif
B344: No. | C344: Indikator | I344: Skor
I345: Tidak Ada Bukti (Tidak Terpenuhi) | J345: Terpenuhi Sebagian | K345: Seluruhnya Terpenuhi
I346: 0 | J346: 1 | K346: 2
B347: 1. | C347: Guru memperlakukan semua peserta didik secara adil, memberikan perhatian dan bantuan sesuai kebutuhan masing-masing, tanpa memperdulikan faktor personal | I347: =IF($M347=1,"V","") -> V | J347: =IF($M347=2,"V","") ->  | K347: =IF($M347=3,"V","") ->  | M347: 1
B348: 2. | C348: Guru menjaga hubungan baik dan peduli dengan teman sejawat (bersikap insklusif), serta berkonstribusi positif terhadap semua diskusi formal dan informal terkait dengan pekerjaannya | I348: V | M348: 1
B349: 3. | C349: Guru sering berinteraksi dengan peserta didik dan tidak membatasi perhatiannya hanya pada kelompok tertentu (misalnya : peserta didik yang pandai, kaya, berasal dari daerah yang sama dengan guru) | I349: V | M349: 1
B350: Total skor untuk kompetensi 11 | I350: =((COUNTIF(K347:K349,"V"))*2)+(COUNTIF(J347:J349,"V")) -> 0
B351: Skor maksimum kompetensi 11 = jumlah indikator × 2 | I351: 6
B352: Persentase = (total skor/8) × 100% | I352: =(I350/I351)*100 -> 0
B353: Nilai untuk kompetensi 11 (0% < X ≤ 25% = 1; 25% < X ≤ 50% = 2; 50% < X ≤ 75% = 3; 75% < X ≤ 100% = 4) | I353: =IF(I352>75,"4",IF(I352>50,"3",IF(I352>25,"2","1"))) -> 1
B382: PENILAIAN KOMPETENSI 12
B383: Komunikasi dengan sesama guru, tenaga kependidikan, orang tua, peserta didik dan masyarakat
B384: No. | C384: Indikator | I384: Skor
I385: Tidak Ada Bukti (Tidak Terpenuhi) | J385: Terpenuhi Sebagian | K385: Seluruhnya Terpenuhi
I386: 0 | J386: 1 | K386: 2
B387: 1. | C387: Guru menyampaikan informasi tentang kemajuan, kesulitan, dan potensi peserta didik kepada orang tuanya, baik dalam pertemuan formal maupun tidak formal antara guru dan orang tua, teman sejawat, dan dapat menunjukkan buktinya | I387: =IF($M387=1,"V","") -> V | J387: =IF($M387=2,"V","") ->  | K387: =IF($M387=3,"V","") ->  | M387: 1
B388: 2. | C388: Guru ikut berperan aktif dalam kegiatan di luar pembelajaran yang diselenggarakan oleh sekolah dan masyarakat dan dapat memberikan bukti keikutsertaannya | I388: V | M388: 1
B389: 3. | C389: Guru memperhatikan sekolah sebagai bagian dari masyarakat, berkomunikasi dengan masyarakat sekitar, serta berperan dalam kegiatan sosial di masyarakat | I389: V | M389: 1
B390: Total skor untuk kompetensi 12 | I390: =((COUNTIF(K387:K389,"V"))*2)+(COUNTIF(J387:J389,"V")) -> 0
B391: Skor maksimum kompetensi 12 = jumlah indikator × 2 | I391: 6
B392: Persentase = (total skor/8) × 100% | I392: =(I390/I391)*100 -> 0
B393: Nilai untuk kompetensi 12 (0% < X ≤ 25% = 1; 25% < X ≤ 50% = 2; 50% < X ≤ 75% = 3; 75% < X ≤ 100% = 4) | I393: =IF(I392>75,"4",IF(I392>50,"3",IF(I392>25,"2","1"))) -> 1
B421: PENILAIAN KOMPETENSI 13
B422: Penguasaan materi, struktur, kosep dan pola pikir keilmuan yang mendukung mata pelajaran yang diampu
B423: No. | C423: Indikator | I423: Skor
I424: Tidak Ada Bukti (Tidak Terpenuhi) | J424: Terpenuhi Sebagian | K424: Seluruhnya Terpenuhi
I425: 0 | J425: 1 | K425: 2
B426: 1. | C426: Guru melakukan pemetaan standar kompetensi dan kompetensi dasar untuk mata pelajaran yang diampunya, untuk mengidentifikasi materi pembelajaran yang dianggap sulit, melakukan perencanaan dan pelaksanaan pembelajaran, dan memperkirakan alokasi waktu yang diperlukan | I426: =IF($M426=1,"V","") -> V | J426: =IF($M426=2,"V","") ->  | K426: =IF($M426=3,"V","") ->  | M426: 1
B427: 2. | C427: Guru menyertakan informasi yang tepat dan mutakhir di dalam perencanaan dan pelaksanaan pembelajaran | I427: V | M427: 1
B428: 3. | C428: Guru menyusun materi, perencanaan dan pelaksanaan pembelajaran yang berisi informasi yang tepat, mutakhir, dan yang membantu peserta didik untuk memahami konsep materi pembelajaran | I428: V | M428: 1
B429: Total skor untuk kompetensi 13 | I429: =((COUNTIF(K426:K428,"V"))*2)+(COUNTIF(J426:J428,"V")) -> 0
B430: Skor maksimum kompetensi 13 = jumlah indikator × 2 | I430: 6
B431: Persentase = (total skor/8) × 100% | I431: =(I429/I430)*100 -> 0
B432: Nilai untuk kompetensi 13 (0% < X ≤ 25% = 1; 25% < X ≤ 50% = 2; 50% < X ≤ 75% = 3; 75% < X ≤ 100% = 4) | I432: =IF(I431>75,"4",IF(I431>50,"3",IF(I431>25,"2","1"))) -> 1
B460: PENILAIAN KOMPETENSI 14
B461: Mengembangkan Keprofesionalan melalui tindakan yang reflektif
B462: No. | C462: Indikator | I462: Skor
I463: Tidak Ada Bukti (Tidak Terpenuhi) | J463: Terpenuhi Sebagian | K463: Seluruhnya Terpenuhi
I464: 0 | J464: 1 | K464: 2
B465: 1. | C465: Guru melakukan evaluasi diri secara spesifik, lengkap, dan didukung dengan contoh pengalaman diri sendiri | I465: =IF($M465=1,"V","") -> V | J465: =IF($M465=2,"V","") ->  | K465: =IF($M465=3,"V","") ->  | M465: 1
B466: 2. | C466: Guru memiliki jurnal pembelajaran, catatan masukan dari kolega atau hasil penilaian proses pembelajaran sebagai bukti yang menggambarkan kinerjanya | I466: V | M466: 1
B467: 3. | C467: Guru memanfaatkan bukti gambaran kinerjanya untuk mengembangkan perencanaan dan pelaksanaan pembelajaran selanjutnya dalam program Pengembangan Keprofesian Berkelanjutan (PKB) | I467: V | M467: 1
B468: 4. | C468: Guru dapat mengaplikasikan pengalaman PKB dalam perencanaan, pelaksanaan, penilaian pembelajaran dan tindak lanjutnya | I468: V | M468: 1
B469: 5. | C469: Guru melakukan penelitian, mengembangkan karya inovasi, mengikuti kegiatan ilmiah (misalnya seminar, konferensi), dan aktif dalam melaksanakan PKB | I469: V | M469: 1
B470: 6. | C470: Guru dapat memanfaatkan TIK dalam berkomunikasi dan pelaksanaan PKB | I470: V | M470: 1
... 8 more rows

Sheet Lampiran & Rekap PK Guru
T1: 1
J2: Lampiran 1A | M2: GESER KE BAWAH UNTUK MELIHAT REKAP HASIL PENILAIAN PK GURU
B4: LEMBAR PERNYATAAN KOMPETENSI, INDIKATOR,
B5: DAN CARA MENILAI PK GURU KELAS / MATA PELAJARAN
B7: Sumber :
B8: ⪧ | C8: Peraturan Menteri Pendidikan Nasional No. 16 Tahun 2007 tentang Standar Kualifikasi Akademik dan Kompetensi Guru
B9: ⪧ | C9: BSNP versi 6.0 11/2008 kerangka indikator untuk pelaporan pencapaian Standar Nasional Pendidikan : Standar Kualifikasi Akademik dan Kompetensi Guru
B10: ⪧ | C10: Permenegpan dan RB 16/2009 tentang Jabatan Fungsional Guru dan Angka Kreditnya
B11: No. | C11: Kompetensi | I11: Cara Menilai
B12: A. Pedagogik
B13: 1. | C13: Menguasai Karakteristik peserta didik | I13: Pengamatan & Pemantauan
B14: 2. | C14: Menguasai teori belajar dan prinsip-prinsip pembelajaran yang mendidik | I14: Pengamatan
B15: 3. | C15: Pengembangan Kurikulum | I15: Pengamatan
B16: 4. | C16: Kegiatan pembelajaran yang mendidik | I16: Pengamatan
B17: 5. | C17: Pengembangan potensi peserta didik | I17: Pengamatan & Pemantauan
B18: 6. | C18: Komunikasi dengan peserta didik | I18: Pengamatan
B19: 7. | C19: Penilaian dan evaluasi | I19: Pengamatan
B20: B. Kepribadian
B21: 8. | C21: Bertindak sesuai dengan norma agama, hukum, sosial, dan kebudayaan nasional | I21: Pengamatan & Pemantauan
B22: 9. | C22: Menunjukan pribadi yang dewasa dan teladan | I22: Pengamatan & Pemantauan
B23: 10. | C23: Etos kerja, tanggung jawab yang tinggi, rasa bangga menjadi guru | I23: Pengamatan & Pemantauan
B24: C. Sosial
B25: 11. | C25: Bersikap inklusif, bertindak obyektif, serta tidak diskriminatif | I25: Pengamatan & Pemantauan
B26: 12. | C26: Komunikasi dengan sesama guru, tenaga kependidikan, orang tua, peserta didik dan masyarakat | I26: Pengamatan
B27: D. Profesional
B28: 13. | C28: Penguasaan materi, struktur, kosep dan pola pikir keilmuan yang mendukung mata pelajaran yang diampu | I28: Pengamatan
B29: 14. | C29: Mengembangkan Keprofesionalan melalui tindakan yang reflektif | I29: Pengamatan
B31: Keterangan:
B32: Pengamatan | D32: adalah kegiatan yang menilai kinerja guru melalui diskusi sebelum pengamatan, pengamatan selama pelaksanaan proses pembelajaran, dan diskusi setelah pengamatan
B33: Pemantauan | D33: adalah kegiatan untuk menilai kinerja guru melalui pemeriksaan dokumen, wawancara dengan guru yang dinilai, dan/atau wawancara dengan warga sekolah
B35: ="Cirebon, "&Guru!D46 -> Cirebon, 31 Desember 2021
B37: Guru Yang Dinilai, | F37: Penilai, | I37: =IF((LEFT(Madrasah!$D$6,2))="RA","Kepala RA,","Kepala Madrasah,") -> Kepala Madrasah,
B41: =Guru!$D$6 -> 0 | F41: =Menu!$D$15 -> 0 | I41: =Madrasah!$D$16 -> H. SOIF, S.Ag., M.Pd.
B42: ="NIP. "&(IF((Guru!$D$8)="-","- ",(Guru!$D$8))) -> NIP. | F42: ="NIP. "&(IF((Menu!$D$17)="-","- ",(Menu!$D$17))) -> NIP. | I42: ="NIP. "&(IF((Madrasah!$D$18)="-","- ",(Madrasah!$D$18))) -> NIP. 19680302 199203 1 002
J44: Lampiran 1B
B46: LAPORAN DAN EVALUASI
B47: PENILAIAN KINERJA GURU KELAS / MATA PELAJARAN
B50: Nama Guru | G50: =": "&Guru!$D$6 -> :
B51: NIP / Nomor Seri Karpeg | G51: =": "&Guru!$D$8&" / "&Guru!$D$22 -> : /
B52: Pangkat / Golongan Ruang | G52: =": "&Guru!$D$12 -> :
B53: Terhitung Mulai Tanggal | G53: =Guru!$D$14 -> 00:00:00
B54: NUPTK / NRG | G54: =": "&Guru!$D$24&" / "&Guru!$D$26 -> : /
B55: Nama Madrasah | G55: =": "&Madrasah!$D$6 -> : MTsN 1 Cirebon
B56: Alamat Madrasah | G56: =": Ds. "&Madrasah!$D$8&" Kec. "&Madrasah!$D$10 -> : Ds. Babakangebang Kec. Babakan
B57: Tanggal mulai bekerja di madrasah ini | G57: =Guru!$D$28 -> 00:00:00
B58: Tanggal proses PKG | G58: =Guru!$D$42 -> 00:00:00
B59: Periode Penilaian | G59: =": "&Guru!D44&" s/d "&Guru!D46 -> : 1 Januari 2021 s/d 31 Desember 2021
G60: (tgl/bln/thn) (tgl, bln, thn)
B63: PERSETUJUAN
B64: (Persetujuan ini harus ditandatangani oleh penilai dan guru yang dinilai)
B66: Penilai dan guru yang dinilai menyatakan telah membaca dan memahami semua aspek yang ditulis / dilaporkan dalam format ini dan menyatakan setuju.
H69: ="Cirebon, "&Guru!D46 -> Cirebon, 31 Desember 2021
C70: Guru yang dinilai, | H70: Penilai,
C74: =Guru!$D$6 -> 0 | H74: =Menu!D15 -> 0
C75: ="NIP. "&(IF((Guru!$D$8)="-","- ",(Guru!$D$8))) -> NIP. | H75: ="NIP. "&(IF((Menu!$D$17)="-","- ",(Menu!$D$17))) -> NIP.
J101: Lampiran 1C
B103: REKAP HASIL PENILAIAN KINERJA GURU KELAS/MATA PELAJARAN
B105: a. | C105: N a m a | G105: =Guru!$D$6 -> 0
C106: N I P | G106: =Guru!$D$8 -> 0
C107: Tempat, Tanggal Lahir | G107: =Guru!$D$10 -> 0
C108: Pangkat / Golongan Ruang | G108: =Guru!$D$12 -> 0
C109: Jabatan | G109: =Guru!$D$16 -> 
C110: NUPTK / NRG | G110: =Guru!$D$24&" / "&Guru!$D$26 -> /
C111: TMT sebagai Guru | G111: =Guru!$D$30 -> 00:00:00
C112: Masa Kerja | G112: =Guru!$D$32 -> 0
C113: Jenis Kelamin | G113: =Guru!$D$34 -> 0
C114: Pendidikan Terakhir | G114: =Guru!$D$36 -> 0
C115: Spesialisasi | G115: =Guru!$D$38 -> 0
C116: Program Keahlian yang diampu | G116: =Guru!$D$40 -> 0
B117: b. | C117: Tempat Tugas | G117: =Madrasah!$D$6 -> MTsN 1 Cirebon
C118: Unit Kerja | G118: =IF((LEFT(Madrasah!$D$14,17))="Kementerian Agama","Kementerian Agama Kabupaten Cirebon",(IF((LEFT(Madrasah!$D$14,7))="Kemenag","Kementerian Agama Kabupaten Cirebon",Madrasah!$D$14))) -> MTsN 1 Cirebon
C119: Telp. / Fax. Madrasah | G119: =Madrasah!$D$12 -> 0231-8840233
C120: Desa / Kelurahan | G120: =Madrasah!$D$8 -> Babakangebang
C121: Kecamatan | G121: =Madrasah!$D$10 -> Babakan
C122: Kabupaten / Kota | G122: Cirebon
C123: Provinsi | G123: Jawa Barat
B125: Periode Penilaian : | G125: Formatif | H125: =IF(T1=1,"v","") -> v | J125: =Guru!D42 -> 00:00:00
B126: =Guru!D44&" s/d "&Guru!D46 -> 1 Januari 2021 s/d 31 Desember 2021 | G126: Sumatif | H126: =IF(T1=2,"v","") -> 
B127: (Tgl/Bln/Thn) (Tgl/Bln/Thn) | G127: Kemajuan | H127: =IF(T1=3,"v","") -> 
B129: No. | C129: Kompetensi | K129: Nilai*)
B130: A. Pedagogik
B131: 1. | C131: Menguasai Karakteristik peserta didik | K131: ='Penilaian PK Guru'!I16 -> 1
B132: 2. | C132: Menguasai teori belajar dan prinsip-prinsip pembelajaran yang mendidik | K132: ='Penilaian PK Guru'!I52 -> 1
B133: 3. | C133: Pengembangan Kurikulum | K133: ='Penilaian PK Guru'!I83 -> 1
B134: 4. | C134: Kegiatan pembelajaran yang mendidik | K134: ='Penilaian PK Guru'!I129 -> 1
B135: 5. | C135: Pengembangan potensi peserta didik | K135: ='Penilaian PK Guru'!I147 -> 1
B136: 6. | C136: Komunikasi dengan peserta didik | K136: ='Penilaian PK Guru'!I180 -> 1
B137: 7. | C137: Penilaian dan evaluasi | K137: ='Penilaian PK Guru'!I212 -> 1
B138: B. Kepribadian
B139: 8. | C139: Bertindak sesuai dengan norma agama, hukum, sosial, dan kebudayaan nasional | K139: ='Penilaian PK Guru'!I246 -> 1
B140: 9. | C140: Menunjukan pribadi yang dewasa dan teladan | K140: ='Penilaian PK Guru'!I286 -> 1
B141: 10. | C141: Etos kerja, tanggung jawab yang tinggi, rasa bangga menjadi guru | K141: ='Penilaian PK Guru'!I326 -> 1
B142: C. Sosial
B143: 11. | C143: Bersikap inklusif, bertindak obyektif, serta tidak diskriminatif | K143: ='Penilaian PK Guru'!I353 -> 1
B144: 12. | C144: Komunikasi dengan sesama guru, tenaga kependidikan, orang tua, peserta didik dan masyarakat | K144: ='Penilaian PK Guru'!I393 -> 1
B145: D. Profesional
B146: 13. | C146: Penguasaan materi, struktur, kosep dan pola pikir keilmuan yang mendukung mata pelajaran yang diampu | K146: ='Penilaian PK Guru'!I432 -> 1
B147: 14. | C147: Mengembangkan Keprofesionalan melalui tindakan yang reflektif | K147: ='Penilaian PK Guru'!I474 -> 1
B148: Jumlah (Hasil Penilaian Kinerja Guru) | K148: =K131+K132+K133+K134+K135+K136+K137+K139+K140+K141+K143+K144+K146+K147 -> 14
B149: *) Nilai diisi berdasarkan laporan dan evaluasi PK guru, Nilai minimum per kompetensi = 1 dan maksimum = 4
B151: ="Cirebon, "&Guru!D46 -> Cirebon, 31 Desember 2021
B152: Guru Yang Dinilai, | F152: Penilai, | I152: =IF((LEFT(Madrasah!$D$6,2))="RA","Kepala RA,","Kepala Madrasah,") -> Kepala Madrasah,
B156: =Guru!$D$6 -> 0 | F156: =Menu!$D$15 -> 0 | I156: =Madrasah!$D$16 -> H. SOIF, S.Ag., M.Pd.
B157: ="NIP. "&(IF((Guru!$D$8)="-","- ",(Guru!$D$8))) -> NIP. | F157: ="NIP. "&(IF((Menu!$D$17)="-","- ",(Menu!$D$17))) -> NIP. | I157: ="NIP. "&(IF((Madrasah!$D$18)="-","- ",(Madrasah!$D$18))) -> NIP. 19680302 199203 1 002

Sheet AK PK Guru
J2: Lampiran 1D
M3: FORM INI KHUSUS UNTUK GURU PNS DAN/ATAU GURU NON PNS INPASSING
D4: FORMAT PENGHITUNGAN ANGKA KREDIT PENILAIAN KINERJA GURU KELAS / MATA PELAJARAN
B6: a | C6: N a m a | G6: =Guru!$D$6 -> 0
C7: N I P | G7: =Guru!$D$8 -> 0
C8: Tempat, Tanggal Lahir | G8: =Guru!$D$10 -> 0
C9: Pangkat / Golongan Ruang | G9: =Guru!$D$12 -> 0
C10: Jabatan | G10: =Guru!$D$16 -> 
C11: NUPTK / NRG | G11: =Guru!$D$24&" / "&Guru!$D$26 -> /
C12: TMT sebagai Guru | G12: =Guru!$D$30 -> 00:00:00
C13: Masa Kerja | G13: =Guru!$D$32 -> 0
C14: Jenis Kelamin | G14: =Guru!$D$34 -> 0
C15: Pendidikan Terakhir | G15: =Guru!$D$36 -> 0
C16: Spesialisasi | G16: =Guru!$D$38 -> 0
C17: Program Keahlian yang diampu | G17: =Guru!$D$40 -> 0
B18: b | C18: Tempat Tugas | G18: =Madrasah!$D$6 -> MTsN 1 Cirebon
C19: Unit Kerja | G19: =IF((LEFT(Madrasah!$D$14,17))="Kementerian Agama","Kementerian Agama Kabupaten Cirebon",(IF((LEFT(Madrasah!$D$14,7))="Kemenag","Kementerian Agama Kabupaten Cirebon",Madrasah!$D$14))) -> MTsN 1 Cirebon
C20: Telp. / Fax. Madrasah | G20: =Madrasah!$D$12 -> 0231-8840233
C21: Desa / Kelurahan | G21: =Madrasah!$D$8 -> Babakangebang
C22: Kecamatan | G22: =Madrasah!$D$10 -> Babakan
C23: Kabupaten / Kota | G23: Cirebon
C24: Provinsi | G24: Jawa Barat
B25: Nilai PK Guru Kelas / Mata Pelajaran | J25: ='Lampiran & Rekap PK Guru'!$K$148 -> 14
B26: Konversi nilai PK Guru ke dalam skala 0 – 100 sesuai Permeneg PAN & RB No. 16 Tahun 2009 dengan rumus : Nilai PKG (100) = Nilai PKG x 100 Nilai PKG tertinggi | J26: =($J$25/56)*100 -> 25.00
B27: Berdasarkan hasil konversi ke dalam skala nilai sesuai dengan peraturan tersebut, selanjutnya ditetapkan sebutan dan persentase angka kreditnya | J27: =IF($J$26<=50,25%,IF($J$26<=60,50%,IF($J$26<=75,75%,IF($J$26<=90,100%,125%)))) -> 25%
J28: =IF($J$27<=25%,"( KURANG )",IF($J$27<=50%,"( SEDANG )",IF($J$27<=75%,"( CUKUP )",IF($J$27<=100%,"( BAIK )",IF($J$27<=125%,"( AMAT BAIK )",""))))) -> ( KURANG )
B29: Perolehan angka kredit (untuk pembelajaran) yang dihitung berdasarkan rumus berikut ini : | J29: =((((VLOOKUP(Guru!$D$12,Setting!$D$2:$I$14,2,FALSE))-((VLOOKUP(Guru!$D$12,Setting!$D$2:$I$14,4,FALSE))+(VLOOKUP(Guru!$D$12,Setting!$D$2:$I$14,5,FALSE)))-(VLOOKUP(Guru!$D$12,Setting!$D$2:$I$14,6,FALSE)))*1*($J$27))/4) -> 
B30: Angka Kredit satu tahun :
C31: (AKK – AKPKB – AKP) x (JM/JWM) x NPK
C32: 4
B34: ="Cirebon, "&Guru!D46 -> Cirebon, 31 Desember 2021
B36: Guru Yang Dinilai, | F36: Penilai, | I36: =IF((LEFT(Madrasah!$D$6,2))="RA","Kepala RA,","Kepala Madrasah,") -> Kepala Madrasah,
B40: =Guru!$D$6 -> 0 | F40: =Menu!$D$15 -> 0 | I40: =Madrasah!$D$16 -> H. SOIF, S.Ag., M.Pd.
B41: ="NIP. "&(IF((Guru!$D$8)="-","- ",(Guru!$D$8))) -> NIP. | F41: ="NIP. "&(IF((Menu!$D$17)="-","- ",(Menu!$D$17))) -> NIP. | I41: ="NIP. "&(IF((Madrasah!$D$18)="-","- ",(Madrasah!$D$18))) -> NIP. 19680302 199203 1 002

Sheet Lembar Pengamatan
B2: LEMBAR PENGAMATAN DAN PEMANTAUAN PKG
O3: LEMBAR PENGAMATAN DAN PEMANTAUAN PKG
B4: Kompetensi | D4: : | E4: 1. Menguasai karakteristik peserta didik
B5: Nama Guru | D5: : | E5: =Guru!$D$6 -> 0
B6: Nama Penilai | D6: : | E6: =Menu!$D$15 -> 0
B8: A. | C8: Sebelum Pengamatan
C9: Tanggal | F9: =Guru!$D$42 -> 00:00:00
C10: Dokumen dan bahan lain | F10: Daftar hadir siswa, daftar nilai siswa, lembar hasil ulangan siswa, wawancara guru
C11: yang diperiksa
C12: Tanggapan penilai terhadap dokumen dan/atau keterangan guru :
C13: Guru mengetahui kemampuan belajar siswa, Memiliki catatan kejadian yang terjadi di kelasnya, Guru memiliki catatan tentang tugas/PR Siswa
C18: Tindak lanjut yang diperlukan :
C19: Periksa kelengkapan administrasi pembelajaran
B22: B. | C22: Selama Pengamatan
C23: Tanggal | F23: =Guru!$D$42 -> 00:00:00
C24: Dokumen dan bahan lain | F24: RPP, wawancara guru, hasil pengamatan di kelas
C25: yang diperiksa
C26: Kegiatan/aktivitas guru dan peserta didik selama pengamatan :
C27: - Guru mengatur tempat duduk siswa sebelum materi dimulai - Guru memberikan pertanyaan terbuka untuk mengecek pemahaman siswa tentang materi yang diberikan - Guru hafal betul nama-nama siswa di kelas
C32: Tindak lanjut yang diperlukan :
C33: Menanyakan apakah seluruh siswa dapat mencapai tujuan kompetensi setelah pembelajaran
B36: C. | C36: Setelah Pengamatan
C37: Tanggal | F37: =Guru!$D$42 -> 00:00:00
C38: Dokumen dan bahan lain | F38: RPP, lembar pengamatan, wawancara guru
C39: yang diperiksa
C40: Setelah pengamatan : Tanggapan penilai terhadap dokumen dan/atau keterangan guru :
C41: ‐ Guru meminta siswa untuk pindah tempat duduk karena siswa tersebut mempunyai masalah penglihatan ‐ Guru pernah mengambil siswa yang kurang bias berkonsentrasi dalam belajar dan meminta guru Bimbingan dan Konseling untuk member layanan
C46: Tindak lanjut yang diperlukan :
C47: Guru memantau atau memonitor perkembangan siswa
B50: D. | C50: Pemantauan
C51: Tanggal | F51: =Guru!$D$42+7 -> 1900-01-07
C52: Dokumen dan bahan lain | F52: Catatan perkembangan peserta didik Daftar nilai evaluasi hasil belajar
C53: yang diperiksa
C54: Catatan dan tanggapan penilai terhadap dokumen dan/atau keterangan guru (catat kegiatan yang dilakukan) :
C55: Perkembangan peserta didik dicatat di dalam agenda kemajuan belajar Perkembangan nilai hasil belajar dicatat dalam daftar nilai
B59: Kompetensi | D59: : | E59: 2. Menguasai teori belajar dan prinsip-prinsip pembelajaran yang mendidik
B60: Nama Guru | D60: : | E60: =Guru!$D$6 -> 0
B61: Nama Penilai | D61: : | E61: =Menu!$D$15 -> 0
B63: A. | C63: Sebelum Pengamatan
C64: Tanggal | F64: =Guru!$D$42 -> 00:00:00
C65: Dokumen dan bahan lain | F65: RPP dan silabus
C66: yang diperiksa
C67: Tanggapan penilai terhadap dokumen dan/atau keterangan guru :
C68: ‐ Guru dapat menjelaskan alasan penyusunan langkah-langkah kegiatan dalam RPP ‐ Guru mengetahui tujuan pembelajaran serta metode yang akan digunakan dalam KBM
C75: Tindak lanjut yang diperlukan :
C76: Amati susunan RPP apakah sudah sesuai dengan langkah-langkahnya
B81: B. | C81: Selama Pengamatan
C82: Tanggal | F82: =Guru!$D$42 -> 00:00:00
C83: Dokumen dan bahan lain | F83: RPP
C84: yang diperiksa
C85: Kegiatan/aktivitas guru dan peserta didik selama pengamatan :
C86: -Guru menjelaskan tujuan pembelajaran - Guru memberikan pertanyaan kepada siswa baik pertanyaan terbuka maupun pertanyaan untuk dijawab secara individu - Guru memberikan pujian kepada siswa yang berani bertanya - Guru meminta siswa untuk bekerja kelompok ‐ Guru mengecek pemahaman siswa tentang tugas yang diberikan
C93: Tindak lanjut yang diperlukan :
C94: - Guru harus dapat memastikan pemahaman peserta didik terhadap materi pelajaran - Guru memanfaatkan berbagai teknik untuk memotivasi kemauan belajar peserta didik dan membantu dalam pencapaian tujuan pembelajaran - Guru melakukan refleksi sesudah proses pembelajaran
B99: C. | C99: Setelah Pengamatan
C100: Tanggal | F100: =Guru!$D$42 -> 00:00:00
C101: Dokumen dan bahan lain | F101: RPP
C102: yang diperiksa
C103: Setelah pengamatan : Tanggapan penilai terhadap dokumen dan/atau keterangan guru :
C104: ‐ Guru dapat menjelaskan alas an mengapa siswa diminta bekerja secara kelompok dalam suatu materi percobaan
C111: Tindak lanjut yang diperlukan :
C112: - Disarankan menggunakan metode dan model pembelajaran yang sesuai dengan yang ditulis pada RPP
B116: Kompetensi | D116: : | E116: 3. Pengembangan kurikulum
B117: Nama Guru | D117: : | E117: =Guru!$D$6 -> 0
B118: Nama Penilai | D118: : | E118: =Menu!$D$15 -> 0
B120: A. | C120: Sebelum Pengamatan
C121: Tanggal | F121: =Guru!$D$42 -> 00:00:00
C122: Dokumen dan bahan lain | F122: RPP dan silabus
C123: yang diperiksa
C124: Tanggapan penilai terhadap dokumen dan/atau keterangan guru :
C125: ‐ RPP yang ditulis guru ternyata sesuai dengan silabus ‐ Silabus yang disusun guru sesuai dengan standar isi/kurikulum
C132: Tindak lanjut yang diperlukan :
C133: Amati apakah pembelajaran yang dilakukan sesuai dengan RPP
B138: B. | C138: Selama Pengamatan
C139: Tanggal | F139: =Guru!$D$42 -> 00:00:00
C140: Dokumen dan bahan lain | F140: RPP dan Silabus
C141: yang diperiksa
C142: Kegiatan/aktivitas guru dan peserta didik selama pengamatan :
C143: - Guru menghubungkan materi yang diajarkan dengan lingkungan dan kehidupan sehari-hari peserta didik ‐ Guru menjelaskan materi dengan lancar ‐ Guru menjelaskan langkah-langkah percobaan dengan jelas ‐ Guru meminta siswa untuk bekerja berkelompok
C150: Tindak lanjut yang diperlukan :
C151: - Memberikan saran kepada guru agar semua kegiatan/aktivitas pembelajaran mencakup berbagai tipe pembelajaran siswa
B156: C. | C156: Setelah Pengamatan
C157: Tanggal | F157: =Guru!$D$42 -> 00:00:00
C158: Dokumen dan bahan lain | F158: Daftar nilai, program remedial
C159: yang diperiksa
C160: Setelah pengamatan : Tanggapan penilai terhadap dokumen dan/atau keterangan guru :
C161: - guru berupaya memanfaatkan hasil pembelajaran untuk mengembangkan topik materi pembelajaran berikutnya
C168: Tindak lanjut yang diperlukan :
C169: - Memanfaatkan hasil pembelajaran untuk mengembangkan topik materi pembelajaran berikutnya secara efektif dan berkelanjutan
B173: Kompetensi | D173: : | E173: 4. Kegiatan pembelajaran yang mendidik
B174: Nama Guru | D174: : | E174: =Guru!$D$6 -> 0
B175: Nama Penilai | D175: : | E175: =Menu!$D$15 -> 0
B177: A. | C177: Sebelum Pengamatan
C178: Tanggal | F178: =Guru!$D$42 -> 00:00:00
C179: Dokumen dan bahan lain | F179: RPP dan silabus
C180: yang diperiksa
C181: Tanggapan penilai terhadap dokumen dan/atau keterangan guru :
C182: - Guru menjelaskan tentang topik dan kegiatan pembelajaran yang akan dilakukan, kemungkinan ada kesulitan dalam membahas topik tersebut untuk mencapai tujuan yang ditetapkan - Guru menjelaskan bagaimana menetapkan strategi untuk mengatasi apabila peserta didik yang mengalami kesulitan dalam memahami materi pembelajaran
C189: Tindak lanjut yang diperlukan :
C190: - Periksa RPP apakah sudah memuat strategi pembelajaran yang tepat dengan materi yang akan disampaikan. - Periksa alat penilaian yang akan digunakan untuk mengukur ketercapaian tujuan pembelajaran
B195: B. | C195: Selama Pengamatan
C196: Tanggal | F196: =Guru!$D$42 -> 00:00:00
C197: Dokumen dan bahan lain | F197: - Rencana pelaksanaan pembelajaran (RPP) - Media pembelajaran
C198: yang diperiksa
C199: Kegiatan/aktivitas guru dan peserta didik selama pengamatan :
C200: - Guru telah menyesuaikan kemampuan peserta didik untuk berkonsentrasi dalam menerima pelajaran sesuai dengan tingkat perkembangannya - Kegiatan guru dalam pembelajaran dapat membantu sebagian peserta didik untuk mencapai tujuan pembelajaran - Dalam mengelola aktivitas guru melaksanakan pembelajaran tidak sesuai dengan tujuan pembelajaran yang direncanakan
C207: Tindak lanjut yang diperlukan :
C208: - Guru harus mengupayakan aktivitas pembelajaran agar sesuai dengan kemampuan peserta didik untuk berkonsentrasi dalam menerima pelajaran sesuai dengan tingkat perkembanganya
B213: C. | C213: Setelah Pengamatan
C214: Tanggal | F214: =Guru!$D$42 -> 00:00:00
C215: Dokumen dan bahan lain | F215: - Buku Nilai - Buku Penugasan
C216: yang diperiksa
C217: Setelah pengamatan : Tanggapan penilai terhadap dokumen dan/atau keterangan guru :
C218: - Ada peningkatan dalam hasil evaluasi pembelajaran - Belum ada daftar identifikasi masalah yang perlu diperbaiki
C225: Tindak lanjut yang diperlukan :
C226: - Guru diminta untuk menjelaskan seberapa jauh tingkat keberhasilan dalam pembelajaran - Guru diminta untuk membuat daftar identifikasi bagian mana yang perlu diperbaiki
B230: Kompetensi | D230: : | E230: 5. Pengembangan potensi peserta didik
B231: Nama Guru | D231: : | E231: =Guru!$D$6 -> 0
B232: Nama Penilai | D232: : | E232: =Menu!$D$15 -> 0
B234: A. | C234: Sebelum Pengamatan
C235: Tanggal | F235: =Guru!$D$42 -> 00:00:00
C236: Dokumen dan bahan lain | F236: RPP dan silabus
C237: yang diperiksa
C238: Tanggapan penilai terhadap dokumen dan/atau keterangan guru :
C239: - Melalui Buku Catatan Khusus, guru Dapat menunjukan kekuatan dan kelemahan pesertaidik dengan mengadakan pengamatan sikap peserta didik terhadap materi pembelajaran
C244: Tindak lanjut yang diperlukan :
C245: - Guru disarankan menganalisis hasil belajar dengan memperhatikan tingkat kemajuan masing-masing
B248: B. | C248: Selama Pengamatan
C249: Tanggal | F249: =Guru!$D$42 -> 00:00:00
C250: Dokumen dan bahan lain | F250: - Daftar hadir, RPP, Catatan tugas, Buku Catatan Khusus, Daftar hasil belajar siswa
C251: yang diperiksa
C252: Kegiatan/aktivitas guru dan peserta didik selama pengamatan :
C253: - Guru memperhatikan seluruh peserta didik - Guru memberi kesempatan kepada seluruh peserta didik terlibat secara aktif dalam pembelajaran - Hanya sebagian dari peserta didik yang dapat menggunakan kesempatan yang diberikan kepada mereka untuk menyampaikan pemikiran/pendapatnya
C258: Tindak lanjut yang diperlukan :
C259: - Periksa lembar pengamatan, apakah prosesnya sudah memuat pengamatan peserta didik secara lengkap.
B262: C. | C262: Setelah Pengamatan
C263: Tanggal | F263: =Guru!$D$42 -> 00:00:00
C264: Dokumen dan bahan lain | F264: - Daftar hadir, RPP, Catatan tugas, Buku Catatan Khusus, Daftar hasil belajar siswa
C265: yang diperiksa
C266: Setelah pengamatan : Tanggapan penilai terhadap dokumen dan/atau keterangan guru :
C267: - Guru menjelaskan tindak lanjut yang akan dilakukan pada materi tersebut - Ada beberapa siswa yang mempunyai kemampuan di atas rata-rata sehingga perlu untuk diberikan perlakuan yang berbeda dari peserta didik lainnya
C272: Tindak lanjut yang diperlukan :
C273: - Guru diminta untuk menjelaskan tindak lanjut yang akan dilakukan karena topik tersebut menarik atau sulit dipahami oleh peserta didik
B276: D. | C276: Pemantauan
C277: Tanggal | F277: =Guru!$D$42+7 -> 1900-01-07
C278: Dokumen dan bahan lain | F278: - Buku catatan kemajuan/perkembangan peserta didik
C279: yang diperiksa
C280: Catatan dan tanggapan penilai terhadap dokumen dan/atau keterangan guru (catat kegiatan yang dilakukan) :
C281: - Catatan guru mengenai kemajuan belajar peserta didik terlalu umum belum terperinci kemajuan/kemunduran pemahaman dari setiap peserta didik dan harus dipisah dari Buku Nilai.
B285: Kompetensi | D285: : | E285: 6. Komunikasi dengan peserta didik
B286: Nama Guru | D286: : | E286: =Guru!$D$6 -> 0
B287: Nama Penilai | D287: : | E287: =Menu!$D$15 -> 0
B289: A. | C289: Sebelum Pengamatan
C290: Tanggal | F290: =Guru!$D$42 -> 00:00:00
C291: Dokumen dan bahan lain | F291: RPP dan Lembar Pengamatan
C292: yang diperiksa
C293: Tanggapan penilai terhadap dokumen dan/atau keterangan guru :
C294: - Guru diminta penjelasannya bagaimana mendorong interaksi aktif antar peserta didik
C301: Tindak lanjut yang diperlukan :
C302: - Melengkapi lembar pengamatan dengan memuat pertanyaan yang memancing peserta didik untuk berfikir dan berani mengutarakan idea tau gagasannya
B307: B. | C307: Selama Pengamatan
C308: Tanggal | F308: =Guru!$D$42 -> 00:00:00
C309: Dokumen dan bahan lain | F309: - Lembar Pengamatan, RPP, Buku Penugasan
C310: yang diperiksa
C311: Kegiatan/aktivitas guru dan peserta didik selama pengamatan :
C312: - Pembagian waktu yang digunakan guru untuk berbicara dikelas, berbicara kepada peserta didik secara individu telah tercantum dalam RPP - Guru mengajukan beberapa pertanyaan dengan bervariasi - Pengaturan waktu untuk bekerja kelompok telah dirancang agar mencukupi setiap peserta didik berpartisipasi secara aktif
C319: Tindak lanjut yang diperlukan :
C320: - Pembagian waktu untuk guru berbicara kepada peserta didik tidak lebih banyak daripada waktu yang diberikan kepada peserta didik untuk berinteraksi secara aktif antar peserta didik
B325: C. | C325: Setelah Pengamatan
C326: Tanggal | F326: =Guru!$D$42 -> 00:00:00
C327: Dokumen dan bahan lain | F327: - Lembar pengamatan
C328: yang diperiksa
C329: Setelah pengamatan : Tanggapan penilai terhadap dokumen dan/atau keterangan guru :
C330: - Guru berupaya untuk menciptakan komunikasi yang efektif selama pembelajaran
C337: Tindak lanjut yang diperlukan :
C338: Bertanya atau meminta penjelasan kepada guru tentang persepsi berkaitan dengan efektifitas komunikasi selama proses pembelajaran, misalnya pertanyaan dari peserta didik cukup banyak
B342: Kompetensi | D342: : | E342: 7. Penilaian dan evaluasi
B343: Nama Guru | D343: : | E343: =Guru!$D$6 -> 0
B344: Nama Penilai | D344: : | E344: =Menu!$D$15 -> 0
B346: A. | C346: Sebelum Pengamatan
C347: Tanggal | F347: =Guru!$D$42 -> 00:00:00
C348: Dokumen dan bahan lain | F348: - RPP, Instrumen penilaian
C349: yang diperiksa
C350: Tanggapan penilai terhadap dokumen dan/atau keterangan guru :
C351: - Guru menggunakan teknik penilaian sesuai dengan pencapaian tujuan pembelajaran - Guru menggunakan alat penilaian untuk mengetahui tingkat keberhasilan pembelajaran
C358: Tindak lanjut yang diperlukan :
C359: - Disarankan kepada guru agar teknik penilaian yang disesuaikan dengan indikator yang terdapat pada silabus - Guru memahami macam-macam teknik penilaian dan dapat menjelaskan cara dan fungsinya
B364: B. | C364: Selama Pengamatan
C365: Tanggal | F365: =Guru!$D$42 -> 00:00:00
C366: Dokumen dan bahan lain
C367: yang diperiksa
C368: Kegiatan/aktivitas guru dan peserta didik selama pengamatan :
C376: Tindak lanjut yang diperlukan :
B382: C. | C382: Setelah Pengamatan
C383: Tanggal | F383: =Guru!$D$42 -> 00:00:00
C384: Dokumen dan bahan lain | F384: - Buku Nilai, Analisis Hasil penilaian - RPP, Silabus
C385: yang diperiksa
C386: Setelah pengamatan : Tanggapan penilai terhadap dokumen dan/atau keterangan guru :
C387: - Guru memperoleh masukan balik tentang pengajarannya melalui evaluasi oleh peserta didik tanpa memperhatikan komentar dari teman sekerja, dan refleksi diri - Guru menganalisis penilaian dan menunjukan topik kompetensi yang sulit untuk kepentingan remedial - Guru mengkomunikasikan hasil penilaian kepada peserta didik
C394: Tindak lanjut yang diperlukan :
... 188 more rows

Sheet Cover PPKP
C16: PENILAIAN PRESTASI KERJA
C17: PEGAWAI NEGERI SIPIL
C18: =Guru!D42 -> 00:00:00
C27: Jangka Waktu Penilaian :
C28: =Guru!D44&" s/d "&Guru!D46 -> 1 Januari 2021 s/d 31 Desember 2021
D31: N a m a | E31: : | F31: =Guru!$D$6 -> 0
D32: N I P | E32: : | F32: =Guru!$D$8 -> 0
D33: Pangkat/Gol. Ruang | E33: : | F33: =Guru!$D$12 -> 0
D34: Jabatan | E34: : | F34: =Guru!$D$16 -> 
F35: ="(Guru "&Madrasah!$D$6&")" -> (Guru MTsN 1 Cirebon)
D36: Unit Kerja | E36: : | F36: =Madrasah!$D$14 -> MTsN 1 Cirebon
C43: KEMENTERIAN AGAMA REPUBLIK INDONESIA
C44: KANTOR KEMENTERIAN AGAMA KABUPATEN CIREBON
C45: Jl. Sunan Drajat No. 05 Komplek Perkantoran Sumber - 45611
C46: Telp. (0231) 321254 Fax. (0231) 325405, 321275, 8330579

Sheet SKP
B2: SASARAN KERJA PEGAWAI (SKP)
B4: NO. | C4: I. PEJABAT PENILAI | H4: NO. | I4: PNS YANG DINILAI
B5: 1 | C5: N a m a | E5: =Menu!$D$15 -> 0 | H5: 1 | I5: N a m a | K5: =Guru!$D$6 -> 0
B6: 2 | C6: N I P | E6: =Menu!$D$17 ->  | H6: 2 | I6: N I P | K6: =Guru!$D$8 -> 0
B7: 3 | C7: Pangkat/Gol. Ruang | E7: =Menu!D19 ->  | H7: 3 | I7: Pangkat/Gol. Ruang | K7: =Guru!$D$12 -> 0
B8: 4 | C8: Jabatan | E8: =Menu!D23 ->  | H8: 4 | I8: Jabatan | K8: =Guru!$D$16&" pada "&Madrasah!D6 -> 
B9: 5 | C9: Unit Kerja | E9: Kementerian Agama Kabupaten Cirebon | H9: 5 | I9: Unit Kerja | K9: =Madrasah!D14 -> MTsN 1 Cirebon
B10: NO. | C10: III. KEGIATAN TUGAS JABATAN | G10: ANGKA KREDIT | H10: TARGET
H11: KUANTITAS / | J11: KUALITAS / | L11: WAKTU | M11: BIAYA
H12: OUTPUT | J12: MUTU
B13: 1. UNSUR UTAMA
B14: A. Pembelajaran / Bimbingan dan Tugas Tertentu
B15: 1.) | C15: Merencanakan dan melaksanakan pembelajaran, mengevaluasi dan menilai hasil pembelajaran, menganalisis hasil pembelajaran, melaksanakan tindak lanjut hasil penilaian pembelajaran | G15: =VLOOKUP(Guru!$D$12,Setting!$T$57:$U$63,2,FALSE) ->  | H15: 1 | I15: Laporan PKG | J15: 100 | L15: 12 Bulan | M15: -
B16: 2.) | C16: ="Menjadi "&Guru!$D$20 -> Menjadi | G16: =G15*5% ->  | H16: 1 | I16: Laporan PKG | J16: 100 | L16: 12 Bulan | M16: -
B17: 3.) | C17: =IF(Guru!D18="Guru Kelas","Melaksanakan pembimbingan pada kelas yang menjadi tanggung jawab",IF(Guru!D20="Wali Kelas","Melaksanakan pembimbingan pada kelas yang menjadi tanggung jawab")) -> FALSE | G17: =G15*5% ->  | H17: 1 | I17: Laporan | J17: 100 | L17: 12 Bulan | M17: -
B18: B. Pengembangan Keprofesian Berkelanjutan
B19: 1.) | C19: =Setting!$T$4 -> Melaksanakan kegiatan kolektif guru (MGMP) | G19: =(VLOOKUP($C19,Setting!$T$4:$V$36,2,FALSE))*$H19 -> 0.450 | H19: 3 | I19: =VLOOKUP($C19,Setting!$T$4:$V$36,3,FALSE) -> Laporan | J19: 100 | L19: 12 Bulan | M19: -
B20: 2.) | C20: Membuat karya tulis ilmiah berupa laporan hasil penelitian pendidikan di madrasah, diseminarkan di madrasah dan disimpan di perpustakaan madrasah | G20: =(VLOOKUP($C20,Setting!$T$4:$V$36,2,FALSE))*$H20 -> 4.000 | H20: 1 | I20: =VLOOKUP($C20,Setting!$T$4:$V$36,3,FALSE) -> Laporan | J20: 100 | L20: 12 Bulan | M20: -
B21: 3.) | C21: Membuat makalah ilmiah bidang pembelajaran, tidak diterbitkan, disimpan di perpustakaan | G21: =(VLOOKUP($C21,Setting!$T$4:$V$36,2,FALSE))*$H21 -> 2.000 | H21: 1 | I21: =VLOOKUP($C21,Setting!$T$4:$V$36,3,FALSE) -> Laporan | J21: 100 | L21: 12 Bulan | M21: -
B22: 4.) | C22: Membuat modul/diktat pembelajaran per semester, digunakan di madrasah | G22: =(VLOOKUP($C22,Setting!$T$4:$V$36,2,FALSE))*$H22 -> 0.500 | H22: 1 | I22: =VLOOKUP($C22,Setting!$T$4:$V$36,3,FALSE) -> Laporan | J22: 100 | L22: 12 Bulan | M22: -
B23: 5.) | C23: Membuat alat pelajaran kategori sederhana | G23: =(VLOOKUP($C23,Setting!$T$4:$V$36,2,FALSE))*$H23 -> 1.000 | H23: 1 | I23: =VLOOKUP($C23,Setting!$T$4:$V$36,3,FALSE) -> Alat Pelajaran | J23: 100 | L23: 12 Bulan | M23: -
B24: 6.) | C24: Membuat alat peraga pembelajaran kategori sederhana | G24: =(VLOOKUP($C24,Setting!$T$4:$V$36,2,FALSE))*$H24 -> 1.000 | H24: 1 | I24: =VLOOKUP($C24,Setting!$T$4:$V$36,3,FALSE) -> Alat Peraga | J24: 100 | L24: 12 Bulan | M24: -
B25: 7.) | C25: Membuat alat praktekum kategori sederhana | G25: =(VLOOKUP($C25,Setting!$T$4:$V$36,2,FALSE))*$H25 -> 2.000 | H25: 1 | I25: =VLOOKUP($C25,Setting!$T$4:$V$36,3,FALSE) -> Alat Praktik | J25: 100 | L25: 12 Bulan | M25: -
B26: 2. UNSUR PENUNJANG
B27: 1.) | C27: Menjadi pengawas ujian penilaian dan evaluasi terhadap proses dan hasil belajar | G27: =(VLOOKUP($C27,Setting!$T$4:$V$43,2,FALSE))*$H27 -> 0.240 | H27: 3 | I27: =VLOOKUP($C27,Setting!$T$4:$V$43,3,FALSE) -> SK | J27: 100 | L27: 12 Bulan | M27: -
B28: 2.) | C28: Membimbing siswa dalam kegiatan ekstrakurikuler | G28: =(VLOOKUP($C28,Setting!$T$4:$V$43,2,FALSE))*$H28 -> 0.170 | H28: 1 | I28: =VLOOKUP($C28,Setting!$T$4:$V$43,3,FALSE) -> SK | J28: 100 | L28: 12 Bulan | M28: -
B29: 3.) | C29: Menjadi anggota dalam organisasi profesi | G29: =(VLOOKUP($C29,Setting!$T$4:$V$43,2,FALSE))*$H29 -> 0.750 | H29: 1 | I29: =VLOOKUP($C29,Setting!$T$4:$V$43,3,FALSE) -> SK | J29: 100 | L29: 12 Bulan | M29: -
B30: Jumlah Angka Kredit | G30: =SUM(G27:G29,G19:G25,G15:G15) -> 
I31: =Guru!D42 -> 00:00:00
C32: Pejabat Penilai, | I32: PNS Yang Dinilai,
C36: =$E$5 -> 0 | I36: =" "&Guru!$D$6 -> 
C37: ="NIP. "&$E$6 -> NIP. | I37: =" NIP. "&Guru!$D$8 -> NIP.

Sheet PCSKP
B2: PENILAIAN CAPAIAN SASARAN KERJA PEGAWAI
B4: ="Jangka waktu penilaian "&Guru!D44&" s/d "&Guru!D46 -> Jangka waktu penilaian 1 Januari 2021 s/d 31 Desember 2021
B5: No. | C5: I. Kegiatan Tugas Jabatan | D5: AK | E5: Target | K5: AK | L5: Realisasi | R5: Penghitungan | S5: Nilai Capaian SKP
E6: Kuantitas/ Output | G6: Kual/ Mutu | H6: Waktu | J6: Biaya | L6: Kuantitas/ Output | N6: Kual/ Mutu | O6: Waktu | Q6: Biaya
B7: 1. UNSUR UTAMA
B8: A. Pembelajaran / Bimbingan dan Tugas Tertentu
B9: =SKP!B15 -> 1.) | C9: =SKP!C15 -> Merencanakan dan melaksanakan pembelajaran, mengevaluasi dan menilai hasil pembelajaran, menganalisis hasil pembelajaran, melaksanakan tindak lanjut hasil penilaian pembelajaran | D9: =SKP!G15 ->  | E9: =SKP!H15 -> 1 | F9: =SKP!I15 -> Laporan PKG | G9: =SKP!J15 -> 100 | H9: =SKP!L15 -> 12 | I9: bln | J9: =SKP!M15 -> - | K9: ='AK PK Guru'!J29 ->  | L9: 1 | M9: =F9 -> Laporan PKG | N9: ='AK PK Guru'!J26 -> 25 | O9: 12 | P9: bln | Q9: - | R9: =SUM(U9:W9) -> 201 | S9: =R9/3 -> 67.000 | U9: =L9/E9*100 -> 100 | V9: =N9/G9*100 -> 25 | W9: =((1.76*H9-O9)/H9)*100 -> 76
B10: =SKP!B16 -> 2.) | C10: =SKP!C16 -> Menjadi | D10: =SKP!G16 ->  | E10: =SKP!H16 -> 1 | F10: =SKP!I16 -> Laporan PKG | G10: =SKP!J16 -> 100 | H10: =SKP!L16 -> 12 | I10: bln | J10: =SKP!M16 -> - | K10: =K9*5% ->  | L10: 1 | M10: =F10 -> Laporan PKG | N10: =((K9*5%)*100)/SKP!G16 ->  | O10: 12 | P10: bln | Q10: - | R10: =SUM(U10:W10) ->  | S10: =R10/3 ->  | U10: =L10/E10*100 -> 100 | V10: =N10/G10*100 ->  | W10: =((1.76*H10-O10)/H10)*100 -> 76
B11: =SKP!B17 -> 3.) | C11: =SKP!C17 -> FALSE | D11: =SKP!G17 ->  | E11: =SKP!H17 -> 1 | F11: =SKP!I17 -> Laporan | G11: =SKP!J17 -> 100 | H11: =SKP!L17 -> 12 | I11: bln | J11: =SKP!M17 -> - | K11: =K9*5% ->  | L11: 1 | M11: =F11 -> Laporan | N11: 75 | O11: 12 | P11: bln | Q11: - | R11: =SUM(U11:W11) -> 251 | S11: =R11/3 -> 83.667 | U11: =L11/E11*100 -> 100 | V11: =N11/G11*100 -> 75 | W11: =((1.76*H11-O11)/H11)*100 -> 76
B12: B. Pengembangan Keprofesian Berkelanjutan
B13: =SKP!B19 -> 1.) | C13: =SKP!C19 -> Melaksanakan kegiatan kolektif guru (MGMP) | D13: =SKP!G19 -> 0.450 | E13: =SKP!H19 -> 3 | F13: =SKP!I19 -> Laporan | G13: =SKP!J19 -> 100 | H13: =SKP!L19 -> 12 | I13: bln | J13: =SKP!M19 -> - | K13: =(VLOOKUP(C13,Setting!$T$4:$U$36,2,FALSE))*$L13 -> 0.000 | M13: =F13 -> Laporan | N13: 75 | O13: 12 | P13: bln | Q13: - | R13: =SUM(U13:W13) -> 151 | S13: =R13/3 -> 50.333 | U13: =L13/E13*100 -> 0 | V13: =N13/G13*100 -> 75 | W13: =((1.76*H13-O13)/H13)*100 -> 76
B14: =SKP!B20 -> 2.) | C14: =SKP!C20 -> Membuat karya tulis ilmiah berupa laporan hasil penelitian pendidikan di madrasah, diseminarkan di madrasah dan disimpan di perpustakaan madrasah | D14: =SKP!G20 -> 4.000 | E14: =SKP!H20 -> 1 | F14: =SKP!I20 -> Laporan | G14: =SKP!J20 -> 100 | H14: =SKP!L20 -> 12 | I14: bln | J14: =SKP!M20 -> - | K14: =(VLOOKUP(C14,Setting!$T$4:$U$36,2,FALSE))*$L14 -> 0.000 | M14: Laporan | N14: 75 | O14: 12 | P14: bln | Q14: - | R14: 151 | S14: 50.333 | U14: 0 | V14: 75 | W14: 76
B15: =SKP!B21 -> 3.) | C15: =SKP!C21 -> Membuat makalah ilmiah bidang pembelajaran, tidak diterbitkan, disimpan di perpustakaan | D15: =SKP!G21 -> 2.000 | E15: =SKP!H21 -> 1 | F15: =SKP!I21 -> Laporan | G15: =SKP!J21 -> 100 | H15: =SKP!L21 -> 12 | I15: bln | J15: =SKP!M21 -> - | K15: =(VLOOKUP(C15,Setting!$T$4:$U$36,2,FALSE))*$L15 -> 0.000 | M15: Laporan | N15: 75 | O15: 12 | P15: bln | Q15: - | R15: 151 | S15: 50.333 | U15: 0 | V15: 75 | W15: 76
B16: =SKP!B22 -> 4.) | C16: =SKP!C22 -> Membuat modul/diktat pembelajaran per semester, digunakan di madrasah | D16: =SKP!G22 -> 0.500 | E16: =SKP!H22 -> 1 | F16: =SKP!I22 -> Laporan | G16: =SKP!J22 -> 100 | H16: =SKP!L22 -> 12 | I16: bln | J16: =SKP!M22 -> - | K16: =(VLOOKUP(C16,Setting!$T$4:$U$36,2,FALSE))*$L16 -> 0.000 | M16: Laporan | N16: 75 | O16: 12 | P16: bln | Q16: - | R16: 151 | S16: 50.333 | U16: 0 | V16: 75 | W16: 76
B17: =SKP!B23 -> 5.) | C17: =SKP!C23 -> Membuat alat pelajaran kategori sederhana | D17: =SKP!G23 -> 1.000 | E17: =SKP!H23 -> 1 | F17: =SKP!I23 -> Alat Pelajaran | G17: =SKP!J23 -> 100 | H17: =SKP!L23 -> 12 | I17: bln | J17: =SKP!M23 -> - | K17: =(VLOOKUP(C17,Setting!$T$4:$U$36,2,FALSE))*$L17 -> 0.000 | M17: Alat Pelajaran | N17: 75 | O17: 12 | P17: bln | Q17: - | R17: 151 | S17: 50.333 | U17: 0 | V17: 75 | W17: 76
B18: =SKP!B24 -> 6.) | C18: =SKP!C24 -> Membuat alat peraga pembelajaran kategori sederhana | D18: =SKP!G24 -> 1.000 | E18: =SKP!H24 -> 1 | F18: =SKP!I24 -> Alat Peraga | G18: =SKP!J24 -> 100 | H18: =SKP!L24 -> 12 | I18: bln | J18: =SKP!M24 -> - | K18: =(VLOOKUP(C18,Setting!$T$4:$U$36,2,FALSE))*$L18 -> 0.000 | M18: Alat Peraga | N18: 75 | O18: 12 | P18: bln | Q18: - | R18: 151 | S18: 50.333 | U18: 0 | V18: 75 | W18: 76
B19: =SKP!B25 -> 7.) | C19: =SKP!C25 -> Membuat alat praktekum kategori sederhana | D19: =SKP!G25 -> 2.000 | E19: =SKP!H25 -> 1 | F19: =SKP!I25 -> Alat Praktik | G19: =SKP!J25 -> 100 | H19: =SKP!L25 -> 12 | I19: bln | J19: =SKP!M25 -> - | K19: =(VLOOKUP(C19,Setting!$T$4:$U$36,2,FALSE))*$L19 -> 0.000 | M19: Alat Praktik | N19: 75 | O19: 12 | P19: bln | Q19: - | R19: 151 | S19: 50.333 | U19: 0 | V19: 75 | W19: 76
B20: 1. UNSUR PENUNJANG
B21: =SKP!B27 -> 1.) | C21: =SKP!C27 -> Menjadi pengawas ujian penilaian dan evaluasi terhadap proses dan hasil belajar | D21: =SKP!G27 -> 0.240 | E21: =SKP!H27 -> 3 | F21: =SKP!I27 -> SK | G21: =SKP!J27 -> 100 | H21: =SKP!L27 -> 12 | I21: bln | J21: =SKP!M27 -> - | K21: =(VLOOKUP(C21,Setting!$T$4:$U$36,2,FALSE))*$L21 ->  | M21: SK | N21: 75 | O21: 12 | P21: bln | Q21: - | R21: =SUM(U21:W21) -> 151 | S21: 50.333 | U21: 0 | V21: 75 | W21: 76
B22: =SKP!B28 -> 2.) | C22: =SKP!C28 -> Membimbing siswa dalam kegiatan ekstrakurikuler | D22: =SKP!G28 -> 0.170 | E22: =SKP!H28 -> 1 | F22: =SKP!I28 -> SK | G22: =SKP!J28 -> 100 | H22: =SKP!L28 -> 12 | I22: bln | J22: =SKP!M28 -> - | K22: =(VLOOKUP(C22,Setting!$T$4:$U$36,2,FALSE))*$L22 ->  | M22: SK | N22: 75 | O22: 12 | P22: bln | Q22: - | R22: 151 | S22: 50.333 | U22: 0 | V22: 75 | W22: 76
B23: =SKP!B29 -> 3.) | C23: =SKP!C29 -> Menjadi anggota dalam organisasi profesi | D23: =SKP!G29 -> 0.750 | E23: =SKP!H29 -> 1 | F23: =SKP!I29 -> SK | G23: =SKP!J29 -> 100 | H23: =SKP!L29 -> 12 | I23: bln | J23: =SKP!M29 -> - | K23: =(VLOOKUP(C23,Setting!$T$4:$U$36,2,FALSE))*$L23 ->  | M23: SK | N23: 75 | O23: 12 | P23: bln | Q23: - | R23: 151 | S23: 50.333 | U23: 0 | V23: 75 | W23: 76
B24: J u m l a h | S24: =SUM(S9:S23) -> 
B25: Nilai Capaian SKP | S25: =S24/13 ->  | U25: HARUS DIRUBAH SESUAI JUMLAH UNSUR SKP
S26: =IF(S25<=50,"(BURUK)",IF(S25<=60,"(SEDANG)",IF(S25<=75,"(CUKUP)",IF(S25<=90.99,"(BAIK)","(SANGAT BAIK)")))) ->  | U26: Rumus : | V26: Jumlah Skor
V27: Jumlah Unsur SKP
M28: ="Cirebon, "&Guru!D46 -> Cirebon, 31 Desember 2021
M29: Penilai,
M33: =SKP!E5 -> 0
M34: ="NIP. "&SKP!E6 -> NIP.

Sheet Prilaku
B2: BUKU CATATAN PENILAIAN PERILAKU PNS
B5: N a m a | D5: : | E5: =SKP!K5 -> 0
B6: N I P | D6: : | E6: =SKP!K6 -> 0
B7: No. | C7: Tanggal | F7: Uraian | L7: Nama/NIP dan Paraf Pejabat Penilai
B9: 1 | C9: Cirebon, | F9: =Guru!D42 -> 00:00:00 | K9: =PCSKP!S25 -> 
C10: =Guru!D46 -> 31 Desember 2021 | F10: sedangkan penilaian perilaku kerjanya adalah sebagai berikut : | L10: Pejabat Penilai :
G11: Orientasi Pelayanan | H11: = | J11: =IF(I11="-"," (-)",(IF(I11<=50," (Buruk)",IF(I11<=60," (Sedang)",IF(I11<=75," (Cukup)",IF(I11<=90.99," (Baik)"," (Sangat Baik)")))))) -> (Buruk)
G12: Integritas | H12: = | J12: =IF(I12="-"," (-)",(IF(I12<=50," (Buruk)",IF(I12<=60," (Sedang)",IF(I12<=75," (Cukup)",IF(I12<=90.99," (Baik)"," (Sangat Baik)")))))) -> (Buruk)
G13: Komitmen | H13: = | I13: 91.000 | J13: (Sangat Baik)
G14: Disiplin | H14: = | J14: (Buruk) | L14: =SKP!E5 -> 0
G15: Kerjasama | H15: = | J15: (Buruk) | L15: =PCSKP!M34 -> NIP.
G16: Kepemimpinan | H16: = | I16: - | J16: (-)
G17: Jumlah | H17: = | I17: =SUM(I11:I16) -> 91.000
G18: Nilai Rata-Rata | H18: = | I18: =IF(I16="-",I17/5,I17/6) -> 18.200 | J18: =IF(I18<=50," (Buruk)",IF(I18<=60," (Sedang)",IF(I18<=75," (Cukup)",IF(I18<=90.99," (Baik)"," (Sangat Baik)")))) -> (Buruk)

Sheet PPKP
B7: PENILAIAN PRESTASI KERJA
B8: PEGAWAI NEGERI SIPIL
B10: KEMENTERIAN AGAMA | H10: JANGKA WAKTU PENILAIAN
B11: KANTOR KABUPATEN CIREBON | H11: =UPPER(Guru!D44&" s/d "&Guru!D46) -> 1 JANUARI 2021 S/D 31 DESEMBER 2021
B12: 1. | C12: YANG DINILAI
C13: a. N a m a | H13: =Guru!D6 -> 0
C14: b. N I P | H14: =Guru!D8 -> 0
C15: c. Pangkat / Gol. Ruang | H15: =Guru!D12 -> 0
C16: d. Jabatan | H16: =SKP!K8 -> 
C17: e. Unit Kerja | H17: =SKP!K9 -> MTsN 1 Cirebon
B18: 2. | C18: PEJABAT PENILAI
C19: a. N a m a | H19: =SKP!E5 -> 0
C20: b. N I P | H20: =SKP!E6 -> 
C21: c. Pangkat / Gol. Ruang | H21: =SKP!E7 -> 
C22: d. Jabatan | H22: =SKP!E8 -> 
C23: e. Unit Kerja | H23: =SKP!E9 -> Kementerian Agama Kabupaten Cirebon
B24: 3. | C24: ATASAN PEJABAT PENILAI
C25: a. N a m a | H25: =IF(H19="H. SOIF, S.Ag, M.Pd.","Drs. H. MUJAYIN, M.Pd.I","H. SOIF, S.Ag, M.Pd.") -> H. SOIF, S.Ag, M.Pd.
C26: b. N I P | H26: =VLOOKUP($H$25,Setting!$A$76:$E$77,2,FALSE) -> 19680302 199203 1 002
C27: c. Pangkat / Gol. Ruang | H27: =VLOOKUP($H$25,Setting!$A$76:$E$77,3,FALSE) -> Pembina Tk. I / IV b
C28: d. Jabatan | H28: =VLOOKUP($H$25,Setting!$A$76:$E$77,4,FALSE) -> Kepala Madrasah
C29: e. Unit Kerja | H29: =VLOOKUP($H$25,Setting!$A$76:$E$77,5,FALSE) -> MTsN 1 Cirebon
B30: 4. | C30: UNSUR YANG DINILAI | K30: J U M L A H
C31: a. Sasaran Kerja PNS (SKP) | H31: =PCSKP!S25 ->  | I31: x 60% | K31: =H31*60% -> 
C32: b. Perilaku Kerja | F32: Orientasi Pelayanan | H32: =Prilaku!I11 -> 0.000 | I32: =IF(H32="-","-",(IF(H32>=91,"Sangat Baik",IF(H32>=76,"Baik",IF(H32>=61,"Cukup",IF(H32>=51,"Kurang",IF(H32>=1,"Buruk","-"))))))) -> -
F33: Integritas | H33: =Prilaku!I12 -> 0.000 | I33: =IF(H33="-","-",(IF(H33>=91,"Sangat Baik",IF(H33>=76,"Baik",IF(H33>=61,"Cukup",IF(H33>=51,"Kurang",IF(H33>=1,"Buruk","-"))))))) -> -
F34: Komitmen | H34: =Prilaku!I13 -> 91.000 | I34: =IF(H34="-","-",(IF(H34>=91,"Sangat Baik",IF(H34>=76,"Baik",IF(H34>=61,"Cukup",IF(H34>=51,"Kurang",IF(H34>=1,"Buruk","-"))))))) -> Sangat Baik
F35: Disiplin | H35: =Prilaku!I14 -> 0.000 | I35: -
F36: Kerjasama | H36: =Prilaku!I15 -> 0.000 | I36: -
F37: Kepemimpinan | H37: =Prilaku!I16 -> - | I37: -
F38: Jumlah | H38: =Prilaku!I17 -> 91.000
F39: Nilai Rata-Rata | H39: =Prilaku!I18 -> 18.200
F40: Nilai Perilaku Kerja | H40: =H39 -> 18.200 | I40: x 40% | K40: =H40*40% -> 7.280
B41: Nilai Prestasi Kerja | K41: =SUM(K40,K31) -> 
K42: =IF(K41="-","-",(IF(K41>=91,"Sangat Baik",IF(K41>=76,"Baik",IF(K41>=61,"Cukup",IF(K41>=51,"Kurang",IF(K41>=1,"Buruk","-"))))))) -> 
B45: 5. | C45: KEBERATAN DARI PEGAWAI NEGERI SIPIL YANG DINILAI
C46: (APABILA ADA)
H50: Tanggal, .................................................
B53: 6. | C53: TANGGAPAN PEJABAT PENILAI ATAS KEBERATAN
H57: Tanggal, .................................................
B60: 7. | C60: KEPUTUSAN ATASAN PEJABAT PENILAI ATAS KEBERATAN
H64: Tanggal, .................................................
B67: 8. | C67: REKOMENDASI
C69: Dapat dipromosikan
H73: 9. | I73: ="DIBUAT TANGGAL, "&UPPER(Guru!D46) -> DIBUAT TANGGAL, 31 DESEMBER 2021
I74: PEJABAT PENILAI,
I78: =H19 -> 0
E79: =DATE(YEAR(Guru!$D$42)+1,MONTH(Guru!$D$42),DAY(Guru!$D$42)) -> 1900-12-31 | I79: ="NIP. "&H20 -> NIP.
B81: 10. | C81: ="DITERIMA TANGGAL, 04 JANUARI "&TEXT(E79,"YYYY") -> DITERIMA TANGGAL, 04 JANUARI 1900
C82: PEGAWAI NEGERI SIPIL YANG DINILAI,
C86: =PPKP!H13 -> 0
C87: ="NIP. "&H14 -> NIP. 0
H89: 11. | I89: ="DITERIMA TANGGAL, 11 JANUARI "&TEXT(E79,"YYYY") -> DITERIMA TANGGAL, 11 JANUARI 1900
I90: ATASAN PEJABAT YANG PENILAI,
I94: =H25 -> H. SOIF, S.Ag, M.Pd.
I95: ="NIP. "&H26 -> NIP. 19680302 199203 1 002
